Workbook

Sheet Welcome
C3: Welcome to the SHARP Tool
C4: Version: | E4: v2024.02.20
C6: The SHARP Tool is the Department of Ecology's site assessment procedure required by RCW 70A.305.030(2)(b) and regulated by chapter 173-340 WAC. The SHARP Tool supports meaningful decision making for sites that pose an exposure risk to people and other living things and plays a key role in how Ecology focuses on improving environmental equity under the HEAL Act of 2021. Ratings rely on scores from assessing risks of potential chemical exposure and severity in soil, groundwater, surface water, sediment, and indoor air. These assessments inform an overall SHARP rating of low, medium, high, or critical. Exposure and severity risks can be re-assessed over time as site cleanups progress and as new information becomes available. The current Microsoft Excel format supports a planned conversion into an online application and is intended for internal Ecology use only.
C8: SHARP Tool Structure
C10: Tabs | E10: Page and purpose
C12: The assessor enters information on only these two pages.
C13: Info | E13: Site Info page: collects readily available, site-specific information
C14: LD | E14: Local Demographics page: collects state-only local demographics data from federal and state sources
C16: Answer questions on these five sheets to generate assessment scores for five environmental media.
C17: SL | E17: Soil assessment page
C18: GW | E18: Groundwater assessment page
C19: SW | E19: Surface Water assessment page
C20: SD | E20: Sediment assessment page
C21: IA | E21: Indoor Air assessment page
C22: AF | E22: Additional Factors — collects useful, non-scoring site information
C24: Together, the following two sheets comprise a SHARP Report.
C25: Pt1 | E25: SHARP Report Part 1: text assessment summary
C26: Pt2 | E26: SHARP Report Part 2: site conceptual model
C28: ChemTox is a list of chemicals and relevant information from the CLARC database.
C29: ChemTox | E29: Chemical Toxicity Reference Table
C31: SHARP Tool Support
C33: SHARP Manual | E33: The companion SHARP Manual helps users answer questions in the SHARP Tool, navigate online information sources to collect information.

Sheet Info
C3: Site Info | K3: Respond to all fields
C5: 1 | D5: ▼ Enter basic site info (add overflow to narrative)
E7: Site name | G7: CHS Sun Basin Petroleum Facility Diesel Release
E8: Street address | G8: 2 Division Street West
E9: City | G9: Quincy | J9: Zip | K9: 98848
E10: County | F10: [select one] | G10: Grant | I10: (select)
E11: Land use | F11: [select one] | G11: menu ▼ | I11: (select)
E12: Parcel(s) | F12: [list all, separated by " ; "]
C14: 2 | D14: ▼ Enter Ecology identifiers (all that apply, add overflow to narrative)
E16: Responsible unit | G16: ERO | I16: (select)
E17: ERTS | G17: 729023
E18: CSID | G18: 17003
E19: FSID | G19: 5629891
E20: VCP
E21: UST ID
E22: LUST ID
C24: 3 | D24: ▼ Enter relevant info
E26: Assessor name | G26: Sara Fulton
E27: Assessment date | G27: 2024-03-04
H28: Current MTCA cleanup milestone | I28: initial investigation | K28: (select)
C30: 4 | D30: Is this a SHARP first assessment or re-assessment. | I30: first assessment | K30: (select)
D32: ♦ If re-assessing, enter SHARP first-assessment information from ISIS here.
E33: ♦ SHARP Tool version
E34: ♦ SHARP assessment date
E35: ♦ SHARP rating | H35: menu ▼ | J35: (select)
E36: ♦ EJFlagged? | H36: menu ▼ | J36: (select)
E37: ♦ LD data confidence level | H37: menu ▼
E38: ♦ Cleanup milestone | H38: menu ▼ | J38: (select)
E39: ♦ Assessor name
C42: 5 | D42: ▼ Enter sources reviewed (newest to oldest: year, title, author/organization)
E44: None
C54: 6 | D54: ▼ Describe the source/source area
C56: According to the SPILLs report, the cause of the release was due to mechanical failure (The wind caused an arm to fall into a valve opening it spilling 104 gallons of diesel into concrete and asphalt parking area and water oil separator containment).
C62: 7 | D62: ▼ Briefly summarize the site's contamination and cleanup history
C64: According to the SPILLs report, the cause of the release was due to mechanical failure (The wind caused an arm to fall into a valve opening it spilling 104 gallons of diesel into concrete and asphalt parking area and water oil separator containment). Photos taken by SPILLS show deep cracks in the concrete/asphalt, suspect that some of the diesel fuel seeped into those cracks. Per Shawn Conroy, they plan to seal the cracks but not replace the concrete/asphalt. At this time, no further cleanup work is expected at this time.

Sheet LD
C4: Local Demographics | K4: =IF(OR(LD_P80_DemoIndex="",LD_P80_SubDemoIndex="",LD_P80_Color="",LD_P80_Income="",LD_P80_Unemployed="",LD_P80_English="",LD_P80_School="",LD_P80_Under5="",LD_P80_Over64="",LD_P80_LowLife="",EHDRank="",LD_Override="menu ▼",LD_Confidence="menu ▼"),"Respond to all fields", IF(LD_Override="yes","EJFlagged: Overridden", IF(OR(LD_P80_DemoIndex>=80,LD_P80_SubDemoIndex>=80,EHDRank>8),"EJFlagged","No EJFlag"))) -> EJFlagged
C6: Follow instructions in the SHARP Manual to collect local demographics information from
C7: the following two websites.
C9: 1 Collect EJScreen socioeconomic index data
E10: Following SHARP Manual instructions, generate an EJScreen Community Report for the site.
E11: Within the Selected Variables table, enter the data in the "Percentile in State" column
E12: for the following socioeconomic indicators.
F15: 95 | G15: ◄ | H15: Demographic Index | K15: 92 | L15: ◄ | M15: Limited English speaking households
F16: 89 | G16: ◄ | H16: Supplemental Demographic Index | K16: 95 | L16: ◄ | M16: Less than high school education
F17: 97 | G17: ◄ | H17: People of color | K17: 86 | L17: ◄ | M17: Under age 5
F18: 80 | G18: ◄ | H18: Low income | K18: 17 | L18: ◄ | M18: Over age 64
F19: 49 | G19: ◄ | H19: Unemployment rate | K19: 17 | L19: ◄ | M19: Low life expectancy
C21: 2 Collect EHD rank data | K21: 10 | L21: ◄ | M21: Enter EHD ranking score 1 to 10
C23: 3 Select a data confidence level | K23: low | N23: (select)
C25: 4 Does the site qualify for an EJFlag override? | K25: no | N25: (select)
F26: If "yes", leave comment below.
C28: 5 Enter comments

Sheet SL
B3: Soil Assessment | E3: =IF(OR(SL_ExScore="SHARPen it",SL_SvScore="SHARPen it",SL_Conf="menu ▼"),"SHARPen it", CONCATENATE(SL_ExScore,SL_SvScore)) -> C4
B5: 1 | C5: Select confidence level | E5: medium
B7: 2 | C7: Potential Exposure | E7: Answers/Scores | G7: Tips
C8: SL_Ex1 | D8: Is there a current impact to site soil that needs cleanup action? | E8: maybe | G8: For people exposed to soil contamination, the MTCA soil-direct contact point of compliance is from ground surface to 15 feet deep across the site (WAC 173-340-740[6][d]). In leaching conditions, the point of contact can exceed this and include the saturated zone.
E9: =IF(SL_Ex1_Ans="menu ▼","", IF(OR(SL_Ex1_Ans="yes",SL_Ex1_Ans="maybe"),"continue", IF(SL_Ex1_Ans="no","D",""))) -> continue | G9: ► WAC 173-340-740 Unrestricted land use soil cleanup standards
F10: Y | G10: Either of the following is true.
F11: • | G11: Testing results confirm contamination levels exceed an applicable MTCA cleanup or screening level.
F12: • | G12: A contaminant is visible on soil (e.g., leaking drum liquid or a solid [powder]).
F13: M | G13: All of the following are true.
F14: • | G14: Soil is discolored, stained, or oily, or has an unnatural odor.
F15: • | G15: Testing information isn't available or adequate enough to rule out an impact.
F16: • | G16: A natural biological source cannot be ruled out.
F17: N | G17: Either of the following is true.
F18: • | G18: Soil testing information indicates no evidence of soil contamination at levels greater than applicable MTCA cleanup or screening levels.
F19: • | G19: No release has been observed, documented, or reported.
C20: SL_Ex2 | D20: Is soil contaminated anywhere from ground surface to approximately 2 feet deep? | E20: maybe | G20: Most soil-direct contact (dermal) exposures are likely to occur at ground surface and down into shallow depths. Common activities that can present soil-direct contact might include participating in sporting events, children playing, gardening, installing fence posts, and landscaping, each of which typically occur from ground surface to about 2 feet deep. Soil at this depth is considered to be "readily accessible". Soil-direct contact includes ingestion for children playing (age 0 to 6 years old), but consider the likelihood for elementary or middle school populations on site. Soil-direct contact exposures is less common or likely with increasing depth.
E21: =IF(SL_Ex1_Score="D","SKIP", IF(SL_Ex2_Ans="menu ▼","", IF(SL_Ex2_Ans="yes","A", IF(SL_Ex2_Ans="maybe","B", IF(SL_Ex2_Ans="no","D",""))))) -> B | F21: Y | G21: Either of the following is true for this approximate depth interval.
F22: • | G22: Testing results confirm contamination levels exceed an applicable MTCA cleanup or screening level.
F23: • | G23: A contaminant is visible on soil (e.g., leaking drum liquid or a solid [powder]).
F24: M | G24: All of the following are true for this approximate depth interval.
F25: • | G25: Soil is discolored, stained, or oily, or has an unnatural odor.
F26: • | G26: Testing information isn't available or adequate enough to rule out an impact.
F27: • | G27: A natural biological source cannot be ruled out.
F28: N | G28: Either of the following is true for this approximate depth interval.
F29: • | G29: Soil testing information indicates no evidence of soil contamination at levels greater than applicable MTCA cleanup or screening levels.
F30: • | G30: No release has been observed, documented, or reported.
C31: SL_Ex3 | D31: Do plants or animals have access to soil contamination anywhere from ground surface to 6 feet deep? | E31: no | G31: The conditional soil point of compliance for plants and animals is from ground surface to 6 feet deep, the reasonable depth terrestrial plants can root and animals can burrow (WAC 173-340-7490[4][a]). The area of contaminated soil that triggers evaluation of plant and animal protective values depends on site contaminants. Consider the following criteria, used for a terrestrial ecological evaluation (TEE), to estimate the risk of exposure to plants and animals (WAC 173-340-7490 through 7493).
E32: =IF(SL_Ex1_Score="D","SKIP", IF(SL_Ex3_Ans="menu ▼","", IF(SL_Ex3_Ans="yes","A", IF(SL_Ex3_Ans="maybe","B", IF(SL_Ex3_Ans="no","D",""))))) -> D | G32: - All contaminated soil is under pavement, a building, or other physical barrier.
G33: - Contamination isn't observed or confirmed from ground surface to 6 feet deep.
G34: - Contaminant levels aren't greater than soil background levels.
G35: - The site meets any of the criteria for a TEE exemption.
G36: - The result of a simplified TEE ends the TEE process.
G37: ► WAC 173-340-7490. Terrestrial ecological evaluation procedures
G38: ► WAC 173-340-7491. Exclusions from a terrestrial ecological evaluation
G39: ► WAC 173-340-7492. Simplified terrestrial ecological evaluation procedures
G40: ► WAC 173-340-7493. Site-specific terrestrial ecological evaluation procedures
G41: See Ecology's draft guidance.
G42: ► Technical Document: Terrestrial Ecological Evaluations under the Model Toxics Control Act
F43: Y | G43: Either of the following is true.
F44: • | G44: A TEE was conducted that didn't result in a TEE exemption or a simplified TEE that ended.
F45: • | G45: A TEE hasn't been conducted, but the site doesn't meet any exclusion criteria.
F46: M | G46: Either of the following is true.
F47: • | G47: Knowledge of site conditions is too limited or inadequate to rule out access to plants and animals.
F48: • | G48: A non-permanent barrier is in place that currently prevents plants and animals from accessing the soil.
F49: N | G49: At least one TEE exclusion criterion is met.
C50: SL_Ex4 | D50: Do any physical barriers block people from direct contact with soil contamination? | E50: yes | G50: Physical contact with soil contamination can be blocked by physical barriers such as buildings, pavement, soil caps, geotextile fabrics, and mitigation barriers. Security fencing and warning signage don't necessarily block access but rather deter access to contaminated soil.
E51: =IF(SL_Ex1_Score="D","SKIP", IF(SL_Ex4_Ans="menu ▼","", IF(SL_Ex4_Ans="yes","C", IF(SL_Ex4_Ans="maybe","B", IF(SL_Ex4_Ans="no","A",""))))) -> C | F51: Y | G51: A physical barrier is in place to block soil-direct contact.
F52: M | G52: A physical barrier prevents some but not all soil-direct contact, such as a partially paved or fenced area.
F53: N | G53: No physical barrier is in place to block soil-direct contact.
D54: Exposure score ► | E54: =IF(OR(SL_Ex1_Score="",SL_Ex2_Score="",SL_Ex3_Score="",SL_Ex4_Score=""),"SHARPen it", IF(SL_Ex1_Score="D","D", IF(AND(OR(SL_Ex2_Score="A",SL_Ex2_Score="B",SL_Ex2_Score="D"),SL_Ex3_Score="A",SL_Ex4_Score="A"),"A", IF(AND(OR(SL_Ex2_Score="A",SL_Ex2_Score="B",SL_Ex2_Score="D"),SL_Ex3_Score="A",SL_Ex4_Score="B"),"A", IF(AND(OR(SL_Ex2_Score="A",SL_Ex2_Score="B",SL_Ex2_Score="D"),SL_Ex3_Score="A",SL_Ex4_Score="C"),"C", IF(AND(SL_Ex2_Score="A",SL_Ex3_Score="B",SL_Ex4_Score="A"),"A", IF(AND(OR(SL_Ex2_Score="A",SL_Ex2_Score="B",SL_Ex2_Score="D"),SL_Ex3_Score="B",SL_Ex4_Score="B"),"B", IF(AND(OR(SL_Ex2_Score="A",SL_Ex2_Score="B",SL_Ex2_Score="D"),SL_Ex3_Score="B",SL_Ex4_Score="C"),"C", IF(AND(SL_Ex2_Score="A",SL_Ex3_Score="D",SL_Ex4_Score="A"),"A", IF(AND(OR(SL_Ex2_Score="A",SL_Ex2_Score="B"),SL_Ex3_Score="D",SL_Ex4_Score="B"),"B", IF(AND(OR(SL_Ex2_Score="A",SL_Ex2_Score="B",SL_Ex2_Score="D"),SL_Ex3_Score="D",SL_Ex4_Score="C"),"C", IF(AND(OR(SL_Ex3_Score="B",SL_Ex3_Score="D"),SL_Ex2_Score="B",SL_Ex4_Score="A"),"B", IF(AND(OR(SL_Ex4_Score="A",SL_Ex4_Score="B",SL_Ex4_Score="C"),SL_Ex2_Score="D",SL_Ex3_Score="D"),"C", "SHARPen it"))))))))))))) -> C
B56: 3 | C56: Severity | E56: Answers/Scores | F56: Tips
C57: SL_Sv1 | D57: Is any extremely toxic chemical in soil? | E57: no | G57: Compare confirmed or suspected chemicals in soil with those listed as extremely toxic under the ChemTox table heading "Soil, Groundwater, Air".
E58: =IF(SL_ExScore="D","SKIP", IF(SL_Sv1_Ans="menu ▼","", IF(SL_Sv1_Ans="yes",10, IF(SL_Sv1_Ans="maybe",6, IF(SL_Sv1_Ans="no",0,""))))) -> 0 | G58: ► ChemTox
F59: Y | G59: Any chemical in soil is listed as extremely toxic in the ChemTox table.
F60: M | G60: Any chemical in soil may be listed as extremely toxic in the ChemTox table, but analytical data are not available to confirm.
F61: N | G61: No chemical in soil is listed as extremely toxic in the ChemTox table.
C62: SL_Sv2 | D62: Is any very toxic chemical in soil? | E62: no | G62: Compare confirmed or suspected chemicals in soil with those listed as very toxic under the ChemTox table heading "Soil, Groundwater, Air".
E63: =IF(SL_ExScore="D","SKIP", IF(OR(SL_Sv1_Score=10,SL_Sv1_Score=6,SL_Sv1_Score=2),"SKIP", IF(SL_Sv2_Ans="menu ▼","", IF(SL_Sv2_Ans="yes",5, IF(SL_Sv2_Ans="maybe",3, IF(SL_Sv2_Ans="no",0,"")))))) -> 0 | G63: ► ChemTox
F64: Y | G64: Any chemical in soil is listed as very toxic in the ChemTox table.
F65: M | G65: Any chemical in soil may be listed as very toxic in the ChemTox table, but analytical data are not available to confirm.
F66: N | G66: No chemical in soil is listed as very toxic in the ChemTox table.
C67: SL_Sv3 | D67: Do children have unrestricted access to the site? | E67: no | G67: Small children are at the greatest risk of accidental soil ingestion through playing and digging in shallow soil. Consider if children may live or play near the site or have unrestricted access to contaminated soil. For soil ingestion, children are considered to be 0 to 6 years of age, but consider the likelihood of occupancy by elementary and middle school populations.
E68: =IF(SL_ExScore="D","SKIP", IF(SL_Sv3_Ans="menu ▼","", IF(SL_Sv3_Ans="yes",10, IF(SL_Sv3_Ans="maybe",6, IF(SL_Sv3_Ans="no",0,""))))) -> 0 | F68: Y | G68: No physical barrier blocks children from accessing the contaminated area.
F69: M | G69: A physical barrier prevents some but not all soil-direct contact, such as a partially paved or fenced contaminated area.
F70: N | G70: A physical barrier blocks access to the contaminated area.
C71: SL_Sv4 | D71: Are people likely to be exposed to contaminated soil as airborne dust? | E71: no | G71: Bare, dry soil contamination can become airborne and present an inhalation exposure. This is more important in arid or windy regions like Eastern Washington or in seasonally dry areas.
E72: =IF(SL_ExScore="D","SKIP", IF(SL_Sv4_Ans="menu ▼","", IF(SL_Sv4_Ans="yes",5, IF(SL_Sv4_Ans="maybe",3, IF(SL_Sv4_Ans="no",0,""))))) -> 0 | F72: Y | G72: People use or occupy areas susceptible to contact with dusty airborne contamination.
F73: M | G73: People occasionally could use or occupy areas susceptible to contact with dusty airborne contamination.
F74: N | G74: The soil contamination is capped or wouldn't likely present dusty conditions.
C75: SL_Sv5 | D75: Has any volatile chemical been identified in site soil or groundwater? | E75: no | G75: A volatile chemical's liquid and gaseous phases can occupy and contaminate soil pore spaces. Further, a volatile chemical gaseous phase in groundwater can mobilize upward above the saturated zone and contaminate soil from below. Identify volatile chemicals in soil and groundwater by comparing confirmed or suspected chemicals with listed chemicals marked as "yes" under the ChemTox table heading "Possible Vapor Intrusion".
E76: =IF(SL_ExScore="D","SKIP", IF(SL_Sv5_Ans="menu ▼","", IF(SL_Sv5_Ans="yes",5, IF(SL_Sv5_Ans="maybe",3, IF(SL_Sv5_Ans="no",0,""))))) -> 0 | G76: ► ChemTox
F77: Y | G77: A volatile chemical has been released to, or identified in, site soil or groundwater, as confirmed by analysis.
F78: M | G78: A volatile chemical has likely been released to, or identified in, site soil or groundwater, but testing information isn't available to confirm.
F79: N | G79: Testing information confirms no volatile chemical has been released to site soil or groundwater, and there is no credible reason to suspect a release.
C80: SL_Sv6 | D80: Does soil contamination pose an immediate risk to groundwater? | E80: maybe | G80: Soil permeability is a soil quality that enables vapor and liquid contaminants to transmit through soil pore space and potentially reach groundwater. Cleanup levels for a soil are established based on the potential for a contaminant to leach from soil into groundwater (WAC 173-340-747). Review the following resources to assess whether groundwater is at risk from soil contamination, based on confirmed or potential soil concentrations.
E81: =IF(SL_ExScore="D","SKIP", IF(SL_Sv6_Ans="menu ▼","", IF(SL_Sv6_Ans="yes",5, IF(SL_Sv6_Ans="maybe",3, IF(SL_Sv6_Ans="no",0,""))))) -> 3 | G81: ► WAC 173-340-747. Deriving soil concentrations for groundwater protection
G82: ► TCP Maps
G83: ► CLARC home page
G84: ► CLARC "Master CLARC Spreadsheet" Tab (surface water headings)(will download)
G85: ► WAC 173-340-357 Soil to groundwater pathway
F86: Y | G86: Any of the following is true.
F87: • | G87: Soil contaminant levels are confirmed in site groundwater in excess of applicable MTCA cleanup or screening levels derived for groundwater protection.
F88: • | G88: The soil contaminant is a non-aqueous phase liquid.
F89: • | G89: The close proximity and depth of the soil contamination poses a risk to groundwater.
F90: M | G90: Both of the following are true.
F91: • | G91: Soil contaminant levels may be greater than applicable MTCA cleanup or screening levels for the soil to groundwater pathway.
F92: • | G92: Groundwater isn't excessively deep or isn't separated from soil contamination by sufficiently low-permeability strata, such as fine-grained or clay-rich soils.
F93: N | G93: Either of the following is true.
F94: • | G94: Soil contamination is relatively "old" with no evidence of having mobilized to groundwater.
F95: • | G95: Groundwater is fairly excessively "deep" or is separated from contamination by sufficiently low-permeability strata.
C96: SL_Sv7 | D96: Do soil contaminants pose an immediate risk to surface water or sediment? | E96: no | G96: Contaminated runoff poses a common risk to surface water and sediment. The runoff pathway can be direct or indirect such as through water flowing in trenches or storm sewer systems that discharge to surface water.
E97: =IF(SL_ExScore="D","SKIP", IF(SL_Sv7_Ans="menu ▼","", IF(SL_Sv7_Ans="yes",5, IF(SL_Sv7_Ans="maybe",3, IF(SL_Sv7_Ans="no",0,""))))) -> 0 | F97: Y | G97: Any of the following is true.
F98: • | G98: Soil contaminants are confirmed in site surface water or sediment at levels greater than applicable MTCA cleanup or screening levels.
F99: • | G99: A perennial or intermittent surface water body is within 100 ft downslope of site contamination.
F100: • | G100: The close proximity of the soil contamination poses a risk to surface water or sediment.
F101: M | G101: At least one of the following is true, and sampling hasn't ruled out surface water and/or sediment impacts.
F102: • | G102: Site soil contamination is near or on a waterfront.
F103: • | G103: A permitted stormwater treatment system is in place and operating as intended, at this time.
F104: • | G104: Current or historic on-site wastewater or storm water systems drain to surface water or a waterfront.
F105: • | G105: The site supports or has supported over-water activities like log rafting, boat maintenance, utility conveyance, or fuel or bilge transfer.
F106: N | G106: Either of the following is true.
F107: • | G107: Runoff from the site is not feasible.
F108: • | G108: Site runoff cannot reach or is unlikely to reach surface water or sediment.
D109: Severity score | E109: =IF(SL_ExScore="D","4", IF(OR(SL_Sv1_Score="",SL_Sv2_Score="",SL_Sv3_Score="",SL_Sv4_Score="",SL_Sv5_Score="",SL_Sv6_Score="",SL_Sv7_Score=""),"SHARPen it", IF(SL_SvQSum>=SL_SvThresh,1, IF(SL_SvQSum>=SL_SvThresh*2/3,2, IF(SL_SvQSum>=SL_SvThresh/3,3,4))))) -> 4
B111: 4 | C111: Enter comments
B112: The site is covered in concrete/asphalt however there are numerous cracks throughout. These cracks could have allowed the diesel to seep into the soil.

Sheet GW
B3: Groundwater Assessment | E3: =IF(OR(GW_ExScore="SHARPen it",GW_SvScore="SHARPen it",GW_Conf="menu ▼"),"SHARPen it", CONCATENATE(GW_ExScore,GW_SvScore)) -> B4
B5: 1 | C5: Select confidence level | E5: medium
B7: 2 | C7: Potential Exposure | E7: Answers/Scores | G7: Tips
C8: GW_Ex1 | D8: Is there an on-site release or impact to groundwater that needs cleanup? | E8: maybe | G8: The standard point of compliance for protection of groundwater quality is across the site from the top of the saturated zone to the lowest saturated depth which could be impacted (WAC 173-340-720[8][b]). If a release to soil has not been cleaned up, and site cleanup or screening levels aren't set, default to comparing data to Methods A or B cleanup levels protective of potable groundwater (WAC 173-340-720[3] and [4]). Compare concentrations with Method A cleanup levels, if the investigation is in its early stages or contaminants are few, and a fairly straightforward cleanup strategy is known or likely. Method B may be used at any site where contaminants aren't listed under Method A. See CLARC's "GW Method A, B & ARARs".
E9: =IF(GW_Ex1_Ans="menu ▼","", IF(OR(GW_Ex1_Ans="yes",GW_Ex1_Ans="maybe"),"continue", IF(GW_Ex1_Ans="no","D",""))) -> continue | G9: ► WAC 173-340-720 Groundwater cleanup standards
G10: ► CLARC "GW Method A, B & ARARs" Tab (will download)
F11: Y | G11: Either of the following is true.
F12: • | G12: Testing results indicate at least one chemical concentration that exceeds an applicable MTCA cleanup or screening level for soil or groundwater.
F13: • | G13: An unnatural oil-like sheen is observed on groundwater samples.
F14: M | G14: Any of the following is true.
F15: • | G15: Testing has not been conducted and used to rule out an impact.
F16: • | G16: The range of chemicals used in soil testing is insufficient to be able to rule out an impact to soil.
F17: • | G17: Pit water or well water samples appear unnaturally discolored or have an unnatural odor.
F18: N | G18: Either of the following is true.
F19: • | G19: The range of chemicals used in soil testing is sufficient enough to rule out an impact to soil.
F20: • | G20: Contaminant concentrations in soil don't exceed applicable MTCA cleanup or screening levels.
C21: GW_Ex2 | D21: Is a site or vicinity drinking water well impacted by contaminants released at the site? | E21: maybe | G21: Review TCP Maps and the DOH Source Water Assessment Program (SWAP) Maps to identify drinking water wells on site or in the vicinity. Also review water well reports, boring logs, groundwater data, and related information to determine the potential for site contamination to have impacted any site or vicinity drinking water wells. Compare available site drinking water well data to applicable MTCA cleanup or screening levels in CLARC's "GW Method A, B & ARARs" sheet.
E22: =IF(GW_Ex1_Score="D","SKIP", IF(GW_Ex2_Ans="menu ▼","", IF(GW_Ex2_Ans="yes","A", IF(GW_Ex2_Ans="maybe","B", IF(GW_Ex2_Ans="no","C",""))))) -> B | G22: ► TCP Maps
G23: ► DOH SWAP Maps
G24: ► CLARC "GW Method A, B & ARARs" Tab
F25: Y | G25: Any of the following is true.
F26: • | G26: A groundwater impact is confirmed for an on-site or vicinity drinking water well.
F27: • | G27: Groundwater testing results show chemical concentrations greater than any applicable MTCA cleanup standard in a site or vicinity drinking water well.
F28: • | G28: A TCP Maps query shows the estimated site plume to be within the 10-year travel-time zone of a Group A or B water supply well, unless a hydrogeologic factor indicates an absence of connection between the impacted groundwater and the drinking water aquifer (for example, a site adjacent to a groundwater discharge area where an upward gradient exists).
F29: M | G29: A domestic drinking water well or irrigation well is located on site or within 500 feet of the site.
F30: N | G30: A municipal or community drinking water system serves the site with water from a surface water source, and groundwater isn't a likely or viable water supply source.
D31: Exposure score ► | E31: =IF(OR(GW_Ex1_Score="",GW_Ex2_Score=""),"SHARPen it", IF(GW_Ex1_Score="D","D", IF(GW_Ex2_Score="A","A", IF(GW_Ex2_Score="B","B", IF(GW_Ex2_Score="C","C"))))) -> B
B33: 3 | C33: Severity | E33: Answers/Scores | F33: Tips
C34: GW_Sv1 | D34: Is any extremely toxic chemical in groundwater? | E34: no | G34: Compare confirmed or suspected chemicals in groundwater with those listed as extremely toxic under the ChemTox table heading "Soil, Groundwater, Air".
E35: =IF(GW_ExScore="D","SKIP", IF(GW_Sv1_Ans="menu ▼","", IF(GW_Sv1_Ans="yes",10, IF(GW_Sv1_Ans="maybe",6, IF(GW_Sv1_Ans="no",0,""))))) -> 0 | G35: ► ChemTox
F36: Y | G36: Any chemical in groundwater is listed as extremely toxic in the ChemTox table.
F37: M | G37: Any chemical in groundwater may be listed as extremely toxic in the ChemTox table, but analytical data are not available to confirm.
F38: N | G38: No chemical in groundwater is listed as extremely toxic in the ChemTox table.
C39: GW_Sv2 | D39: Is any very toxic chemical in groundwater? | E39: no | G39: Compare confirmed or suspected chemicals in groundwater with those listed as very toxic under the ChemTox table heading "Soil, Groundwater, Air".
E40: =IF(GW_ExScore="D","SKIP", IF(OR(GW_Sv1_Score=10,GW_Sv1_Score=6),"SKIP", IF(GW_Sv2_Ans="menu ▼","", IF(GW_Sv2_Ans="yes",5, IF(GW_Sv2_Ans="maybe",3, IF(GW_Sv1_Ans="no",0,"")))))) -> 0 | G40: ► ChemTox
F41: Y | G41: Any chemical in groundwater is listed as very toxic in the ChemTox table.
F42: M | G42: Any chemical in groundwater may be listed as very toxic in the ChemTox table, but analytical data are not available to confirm.
F43: N | G43: No chemical in groundwater is listed as very toxic in the ChemTox table.
C44: GW_Sv3 | D44: Is contaminated groundwater either: 1) within the 10-year travel-time zone of a Group A or B water supply well; or 2) within 500 feet of a domestic water well or irrigation well? | E44: no | G44: Use TCP Maps and DOH SWAP Maps to access groundwater data and other information for the site and vicinity. See if a site or vicinity water supply well derives water from the affected aquifer. The following resources may be helpful.
E45: =IF(GW_ExScore="D","SKIP", IF(GW_Sv3_Ans="menu ▼","", IF(GW_Sv3_Ans="yes",10, IF(GW_Sv3_Ans="maybe",6, IF(GW_Sv3_Ans="no",0,""))))) -> 0 | G45: ► TCP Maps
G46: ► DOH SWAP Maps
F47: Y | G47: Any water supply well meets these criteria, based on sufficient quality information.
F48: M | G48: Any water supply well meets these criteria, based on minimal or low quality information.
F49: N | G49: No known well meets these criteria.
C50: GW_Sv4 | D50: Has any water supply well been adversely affected by site contamination, including any taken out of service? | E50: no | G50: Use TCP Maps and DOH SWAP Maps to determine if any water supply wells are impacted, or likely to be impacted, by contaminants originating from the site.
E51: =IF(GW_ExScore="D","SKIP", IF(GW_Sv4_Ans="menu ▼","", IF(GW_Sv4_Ans="yes",10, IF(GW_Sv4_Ans="maybe",6, IF(GW_Sv4_Ans="no",0,""))))) -> 0 | G51: ► TCP Maps
G52: ► DOH SWAP Maps
F53: Y | G53: Impact to a water supply well has been confirmed by groundwater data.
F54: M | G54: Impact to a water supply well is alleged or suspected, based on minimal information.
F55: N | G55: No water supply well has been reported to be affected.
C56: GW_Sv5 | D56: Is any light non-aqueous phase liquid (LNAPL) chemical observed or present at a measurable thickness in site groundwater? | E56: maybe | G56: LNAPLs such as oils don't mix well with water and are less dense than water. Therefore, they tend to spread or float across a water surface as a visible sheen or as a thicker layer that is measurable. Compare site observations identifying the presence of LNAPL with the chemicals listed in the following publication.
E57: =IF(GW_ExScore="D","SKIP", IF(GW_Sv5_Ans="menu ▼","", IF(GW_Sv5_Ans="yes",5, IF(GW_Sv5_Ans="maybe",3, IF(GW_Sv5_Ans="no",0,""))))) -> 3 | G57: ► EPA Ground Water Issue, Light Nonaqueous Phase Liquids
F58: Y | G58: LNAPL is visible on groundwater or pit water as a sheen or is present in a measurable thickness.
F59: M | G59: A sheen is observed on groundwater, but its thickness isn't measurable.
F60: N | G60: No LNAPL is observed or measurable on site groundwater.
C61: GW_Sv6 | D61: Is any dense non-aqueous phase liquid (DNAPL) chemical observed or present at a measurable thickness in site groundwater? | E61: no | G61: DNAPLs are organic chemicals (e.g., solvents) that don't mix well with water. They are denser than water and tend to sink to the bottom of aquifers. As such, they are difficult to observe in the field. Compare site observations identifying the presence of DNAPL with the chemicals listed in the following publication.
E62: =IF(GW_ExScore="D","SKIP", IF(GW_Sv6_Ans="menu ▼","", IF(GW_Sv6_Ans="yes",5, IF(GW_Sv6_Ans="maybe",3, IF(GW_Sv6_Ans="no",0,""))))) -> 0 | G62: ► EPA Ground Water Issue, Dense Nonaqueous Phase Liquids
F63: Y | G63: Field observation or field DNAPL testing has confirmed DNAPL in groundwater.
F64: M | G64: Field observation or field DNAPL concentrations is inconclusive, but DNAPL is suspected in site groundwater.
F65: N | G65: DNAPL hasn't been observed or detected at a measurable thickness in site groundwater.
C66: GW_Sv7 | D66: Does a site plume extend beyond the source property boundary? | E66: maybe | G66: Compare the site boundary, known or estimated, with the known or likely extent of the plume.
E67: =IF(GW_ExScore="D","SKIP", IF(GW_Sv7_Ans="menu ▼","", IF(GW_Sv7_Ans="yes",5, IF(GW_Sv7_Ans="maybe",3, IF(GW_Sv7_Ans="no",0,""))))) -> 3 | F67: Y | G67: The estimated leading edge of a plume extends beyond the source property line, based on groundwater data.
F68: M | G68: The estimated leading edge of a plume likely extends beyond the source property line, but isn't wholly supported by groundwater data.
F69: N | G69: Groundwater data indicate the plume doesn't extend past the property line.
C70: GW_Sv8 | D70: Does a site plume pose a potential risk to downgradient surface water or sediment? | E70: no | G70: Identify downgradient surface water or sediment sources in the direction of groundwater flow from the site. Evaluate the risk to those sources from the site plume. Consider whether plume concentrations could sufficiently attenuate to non-risk levels before reaching the downgradient surface water or sediment sources. Review the following sources, as needed.
E71: =IF(GW_ExScore="D","SKIP", IF(GW_Sv8_Ans="menu ▼","", IF(GW_Sv8_Ans="yes",5, IF(GW_Sv8_Ans="maybe",3, IF(GW_Sv8_Ans="no",0,""))))) -> 0 | G71: ► TCP Maps
G72: ► WAC 173-340-730 Surface water cleanup standards
F73: Y | G73: Groundwater data indicate an impact to surface water or sediment from a plume originating from the site.
F74: M | G74: Either of the following is true.
F75: • | G75: Nearby surface water or sediment sources are estimated to be downgradient of the site, based on indirect information such as topography features, surficial drainage patterns, or reliance on lower-quality information.
F76: • | G76: Surface water or sediment sources are nearby, but a potential impact from groundwater and the estimated groundwater flow direction aren't well understood.
F77: N | G77: Downgradient surface water and sediment sources aren't at risk.
D78: Severity score | E78: =IF(GW_ExScore="D","4", IF(OR(GW_Sv1_Score="",GW_Sv2_Score="",GW_Sv3_Score="",GW_Sv4_Score="",GW_Sv5_Score="",GW_Sv6_Score="",GW_Sv7_Score="",GW_Sv8_Score=""),"SHARPen it", IF(GW_SvQSum>=GW_SvThresh,1, IF(GW_SvQSum>=GW_SvThresh*2/3,2, IF(GW_SvQSum>=GW_SvThresh/3,3,4))))) -> 4
B80: 4 | C80: Enter comments
B81: The cracks in the concrete/asphalt may have allowed diesel fuel to seep into the ground. Groundwater is at approximately 17.5 feet bgs.

Sheet SW
B3: Surface Water Assessment | E3: =IF(OR(SW_ExScore="SHARPen it",SW_SvScore="SHARPen it",SW_Conf="menu ▼"),"SHARPen it", CONCATENATE(SW_ExScore,SW_SvScore)) -> D4
B5: 1 | C5: Select confidence level | E5: high
B7: 2 | C7: Potential Exposure | E7: Answers/Scores | G7: Tips
C8: SW_Ex1 | D8: Is surface water present on the site? | E8: no | G8: MTCA defines surface water as lakes, rivers, ponds, streams, inland waters, salt waters, and all other surface waters and water courses in the state (WAC 173-340-200). Well to moderately well drained soils aren't likely to support surface water conditions. Use map sources, including the Department of Fish & Wildlife (DFW) sources, to identify or estimate the presence of surface water or its indicators, such as aquatic habitat.
E9: =IF(SW_Ex1_Ans="menu ▼","", IF(OR(SW_Ex1_Ans="yes",SW_Ex1_Ans="maybe"),"continue", IF(SW_Ex1_Ans="no","D",""))) -> D | G9: ► TCP Maps
G10: ► DFW Priority Habitat and Species Map Tool
F11: Y | G11: Surface water is observed or reported on site.
F12: M | G12: Surface water is likely present, but information unavailable or inadequate to rule out its presence.
F13: N | G13: Any of the following is true.
F14: • | G14: The site is paved or covered by buildings or structures.
F15: • | G15: The site is too steep to likely support surface water or has well-draining soil.
F16: • | G16: No on-site standing or surface water is present.
C17: SW_Ex2 | D17: Is surface water contaminated at levels greater than applicable MTCA cleanup or screening levels? | E17: menu ▼ | G17: Based on the protection of surface water, the standard point of compliance is all locations where contamination is released to surface water (WAC 173-340-730[6]). If site-specific cleanup levels aren't available, use CLARC surface water screening levels for marine or fresh water. Search the surface water headings in the "Master CLARC Spreadsheet" tab.
E18: =IF(SW_Ex1_Score="D","SKIP", IF(SW_Ex2_Ans="menu ▼","", IF(OR(SW_Ex2_Ans="yes",SW_Ex2_Ans="maybe"),"continue", IF(SW_Ex2_Ans="no","D","")))) -> SKIP | G18: ► WAC 173-340-730 Surface water cleanup standards
G19: ► CLARC "Master CLARC Spreadsheet" Tab (surface water headings)(will download)
F20: Y | G20: Available information confirms a surface water contaminant level greater than applicable MTCA cleanup or screening levels.
F21: M | G21: Any of the following is true.
F22: • | G22: Testing information isn't available or adequate enough to rule out an impact to surface water.
F23: • | G23: Testing has not been conducted, and other information is too insufficient to rule out an impact to surface water.
F24: • | G24: A water sheen water may not be biological in nature, but information isn't available to confirm.
F25: N | G25: Any one of the following is true.
F26: • | G26: An impact isn't likely.
F27: • | G27: A surface water is upgradient/upslope from a contaminated area.
F28: • | G28: Test results for a sufficient range of suspected chemicals indicate no contaminants at levels greater than applicable MTCA cleanup or screening levels.
C29: SW_Ex3 | D29: Is site surface water used as a drinking water source? | E29: menu ▼ | G29: Use Ecology's Water Rights Search mapping tool to find water right permits, certificates, or claims, which can help identify surface water sources used for drinking water.
E30: =IF(SW_Ex1_Score="D","SKIP", IF(SW_Ex2_Score="D","SKIP", IF(SW_Ex3_Ans="menu ▼","", IF(SW_Ex3_Ans="yes","A", IF(SW_Ex3_Ans="maybe","B", IF(SW_Ex3_Ans="potential future","C", IF(SW_Ex3_Ans="no","D"," "))))))) -> SKIP | G30: ► Water Rights Search
G31: See if site surface water is in a drinking water source protection area using DOH SWAP Maps.
G32: ► DOH SWAP Maps
F33: Y | G33: Either of the following is true.
F34: • | G34: The site has at least one water right permit, certificate, or claim.
F35: • | G35: The site is located in a state drinking water source protection area.
F36: M | G36: The site's surface water is of sufficient quality and quantity that it could be used as a drinking water source but isn't currently.
F37: PF | G37: Site surface water isn't accessible as a drinking water source but could be in the future.
F38: N | G38: Either of the following is true.
F39: • | G39: The site's surface water is not of sufficient quality and quantity to be used as a drinking water source.
F40: • | G40: People have no access to site surface water.
C41: SW_Ex4 | D41: Is the site accessible for fishing? | E41: menu ▼ | G41: Fishing may be conducted in contaminated areas putting fishers at risk of exposure during fishing activities and potentially during consumption of their catch. Identify potential fishing resources and whether they are physically accessible to fishers. Assume all streams and lakes on Puget Sound shorelines are fish-bearing water bodies.
E42: =IF(SW_Ex1_Score="D","SKIP", IF(SW_Ex2_Score="D","SKIP", IF(SW_Ex4_Ans="menu ▼","", IF(SW_Ex4_Ans="yes","A", IF(SW_Ex4_Ans="maybe","B", IF(SW_Ex4_Ans="potential future","C", IF(SW_Ex4_Ans="no","D"," "))))))) -> SKIP | F42: Y | G42: Fishing resource areas are accessible to people who harvest or eat fish.
F43: M | G43: Fishing resource areas may be accessible to people who harvest or eat fish, but additional information is needed to confirm.
F44: PF | G44: Fishing resource areas are not accessible at this time to people who harvest or eat fish, but access could become available in the future.
F45: N | G45: Fishing resource areas don't exist on site, or such areas are not accessible for fishing.
D46: Exposure score ► | E46: =IF(OR(SW_Ex1_Score="",SW_Ex2_Score="",SW_Ex3_Score="",SW_Ex4_Score=""),"SHARPen it", IF(OR(SW_Ex1_Score="D",SW_Ex2_Score="D"),"D", IF(AND(SW_Ex3_Score="D",SW_Ex4_Score="D"),"D", IF(OR(SW_Ex3_Score="A",SW_Ex4_Score="A"),"A", IF(OR(SW_Ex3_Score="B",SW_Ex4_Score="B"),"B", IF(OR(SW_Ex3_Score="C",SW_Ex4_Score="C"),"C","D")))))) -> D
B48: 3 | C48: Severity | E48: Answers/Scores | F48: Tips
C49: SW_Sv1 | D49: Is a PBT (persistent bioaccumulative toxic) chemical impacting or likely to impact surface water or sediment? | E49: menu ▼ | G49: Compare site contaminants with the PBT list in WAC 173-333-310(2).
E50: =IF(SW_ExScore="D","SKIP", IF(SW_Sv1_Ans="menu ▼","", IF(SW_Sv1_Ans="yes",10, IF(SW_Sv1_Ans="maybe",6, IF(SW_Sv1_Ans="no",0,""))))) -> SKIP | G50: ▶ WAC 173-333-310 What chemicals or chemical groups are included on the PBT list?
F51: Y | G51: At least one PBT chemical is detected in surface water or sediment.
F52: M | G52: At least one unconfirmed PBT chemical is suspected in surface water or sediment.
F53: N | G53: No PBT chemical is detected in site surface water or sediment.
C54: SW_Sv2 | D54: Is there a current impact from any extremely toxic chemical to a marine or freshwater ecological community? | E54: menu ▼ | G54: Compare site confirmed or suspected chemicals with those listed as extremely toxic in the ChemTox table under the heading "Surface Water".
E55: =IF(SW_ExScore="D","SKIP", IF(OR(SW_Sv1_Score=10,SW_Sv1_Score=6),"SKIP", IF(SW_Sv2_Ans="menu ▼","", IF(SW_Sv2_Ans="yes",10, IF(SW_Sv2_Ans="maybe",6, IF(SW_Sv2_Ans="no",0,"")))))) -> SKIP | G55: ► ChemTox
F56: Y | G56: At least one extremely toxic chemical is detected in a marine or freshwater ecological community in surface water or sediment.
F57: M | G57: At least one unconfirmed extremely toxic chemical is suspected in surface water or sediment.
F58: N | G58: No extremely toxic chemical is detected in a freshwater or marine ecological community or in surface water or sediment.
C59: SW_Sv3 | D59: Are any at-risk aquatic species on site at any time of year, or are any impacted by site contamination? | E59: menu ▼ | G59: The Washington DFW PHS on the Web maps offer basic information about known locations of biodiversity areas and corridors across Washington. Use the map to create an online "PHS Identify" report that includes on-site and nearby priority habitats and species.
E60: =IF(SW_ExScore="D","SKIP", IF(SW_Sv3_Ans="menu ▼","", IF(SW_Sv3_Ans="yes",10, IF(SW_Sv3_Ans="maybe",6, IF(SW_Sv3_Ans="no",0,""))))) -> SKIP | G60: ► DFW PHS on the Web
F61: Y | G61: At least one at-risk aquatic species is present at the site and is impacted by site contamination.
F62: M | G62: Either of the following is likely to be true.
F63: • | G63: An at-risk aquatic species may be impacted, but more information is needed to confirm.
F64: • | G64: An at-risk aquatic species may access the site at any time of year, but more information is needed to confirm.
F65: N | G65: It isn't likely or possible for an at-risk aquatic species to be impacted or access the site at any time of the year.
C66: SW_Sv4 | D66: Is site contamination less than 2 miles upstream of a current or suitable surface drinking water source? | E66: menu ▼ | G66: Use the DOH Source Water Assessment Program (SWAP) Maps to find information on the locations and quality of vicinity and regional public surface drinking water supplies.
E67: =IF(SW_ExScore="D","SKIP", IF(SW_Sv5_Ans="menu ▼","", IF(SW_Sv5_Ans="yes",10, IF(SW_Sv5_Ans="maybe",6, IF(SW_Sv5_Ans="no",0,""))))) -> SKIP | G67: ► DOH SWAP Maps
F68: Y | G68: Both of the following are true.
F69: • | G69: A surface drinking water supply intake is mapped within approximately 2 miles downstream of contamination.
F70: • | G70: The mapped surface water is of sufficient quality to support a suitable drinking water source.
F71: M | G71: Either of the following is true.
F72: • | G72: Potential surface drinking water use is suspected, based solely on the general site setting.
F73: • | G73: Downstream surface water is of sufficient quality to support a suitable drinking water source, but information sources don't confirm this.
F74: N | G74: The site isn't an upland source to a current or suitable drinking water source.
C75: SW_Sv5 | D75: Is the site less than 2 miles upland of an aquatic recreational source? | E75: menu ▼ | G75: Recreational activities can occur in or on the water or be enhanced by being close to water, such as hiking, nature viewing, and hunting waterfowl. Use the following link to identify in-water and near-water recreational resources, such as fishing and shellfishing locations; public fishing piers; clam, mussel, and oyster beaches; marine fishing areas; lowland and high lakes; and water access areas.
E76: =IF(SW_ExScore="D","SKIP", IF(SW_Sv4_Ans="menu ▼","", IF(SW_Sv4_Ans="yes",5, IF(SW_Sv4_Ans="maybe",3, IF(SW_Sv4_Ans="no",0,""))))) -> SKIP | G76: ► DFW Places to Go
F77: Y | G77: The site is within 2 miles upland of a known aquatic recreational source.
F78: M | G78: The site is within 2 miles upland of a water source that may be used for aquatic recreation, based on the general site setting.
F79: N | G79: The site isn't within 2 miles upland of a known aquatic recreational source.
D80: Severity score | E80: =IF(SW_ExScore="D","4", IF(OR(SW_Sv1_Score="",SW_Sv2_Score="",SW_Sv3_Score="",SW_Sv4_Score="",SW_Sv5_Score=""),"SHARPen it", IF(SW_SvQSum>=SW_SvThresh,1, IF(SW_SvQSum>=SW_SvThresh*2/3,2, IF(SW_SvQSum>=SW_SvThresh/3,3,4))))) -> 4
B82: 4 | C82: Enter comments

Sheet SD
B3: Sediment Assessment | E3: =IF(OR(SD_ExScore="SHARPen it",SD_SvScore="SHARPen it",SD_Conf="menu ▼"),"SHARPen it", CONCATENATE(SD_ExScore,SD_SvScore)) -> D4
B5: 1 | C5: Select confidence level | E5: high
B7: 2 | C7: Potential Exposure | E7: Answers/Scores | G7: Tips
C8: SD_Ex1 | D8: Is sediment on site? | E8: menu ▼ | G8: Sediment can exist only if surface water conditions exist. Sediment accumulates when particulate matter settles at or below the ordinary high water mark, where surface water is present for a minimum of six consecutive weeks annually.
E9: =IF(SW_Ex1_Score="D", "D", IF(SD_Ex1_Ans="menu ▼","", IF(OR(SD_Ex1_Ans="yes",SD_Ex1_Ans="maybe"),"continue", IF(SD_Ex1_Ans="no","D","")))) -> D | F9: Y | G9: Sediment is in an on-site or adjacent area.
F10: M | G10: Sediment may be in an on-site or adjacent area, but more information is needed to confirm.
F11: N | G11: Sediment isn't observed on site or adjacent to the site.
C12: SD_Ex2 | D12: Does a sediment contaminant concentration exceed either a sediment cleanup objective or cleanup screening level for chemistry? | E12: menu ▼ | G12: Identify whether a site contaminant concentration exceeds a criterion for either a sediment cleanup objective (SCO) or a cleanup screening level (CSL) for chemistry in the Sediment Cleanup User’s Manual (SCUM).
E13: =IF(SD_Ex1_Score="D","SKIP", IF(SD_Ex2_Ans="menu ▼","", IF(SD_Ex2_Ans="yes","A", IF(SD_Ex2_Ans="maybe","B", IF(SD_Ex2_Ans="no","D",""))))) -> SKIP | G13: ► see SCUM Table 8-1, p. 8-8
F14: Y | G14: Testing results indicate a contaminant concentration exceeds at least one criterion.
F15: M | G15: Testing results aren't available or adequate enough to rule out exceeding at least one criterion.
F16: N | G16: Testing results are adequate for screening and indicate no exceedance of a listed SCO or CSL.
C17: SD_Ex3 | D17: Does a biological test result exceed an SCO, CSL, or performance standard for marine or freshwater criteria? | E17: menu ▼ | G17: Adverse effects are defined when any biological test result for an SCO, CSL, or performance standard is exceeded for marine or freshwater chemistry. See the following tables in the Sediment Cleanup User’s Manual (SCUM).
E18: =IF(SD_Ex1_Score="D","SKIP", IF(SD_Ex3_Ans="menu ▼","", IF(SD_Ex3_Ans="yes","A", IF(SD_Ex3_Ans="maybe","B", IF(SD_Ex3_Ans="no","D",""))))) -> SKIP | G18: ► see SCUM Table 8-2, p. 8-11, & Table 8-4, p. 8-14
F19: Y | G19: At least one biological test result exceeds a listed SCO, CSL, or performance standard in either SCUM Table 8-2 or 8-4.
F20: M | G20: Either of the following is true.
F21: • | G21: Bioassay testing has been performed, but the quality or quantity of the data is insufficient to rule out an impact.
F22: • | G22: Bioassay testing has not been performed, but an impact is suspected.
F23: N | G23: Testing results indicate no biological criterion is exceeded in either table.
C24: SD_Ex4 | D24: Is there an impact to sediment from an on-site upland source that needs cleanup action? | E24: menu ▼ | G24: Upland sediment sources could include various land uses and cover types, such as forest, cropland, pasture, construction sites, or roads. Natural and unnatural activities and processes occurring at these upland locations can impact a downslope or downgradient site.
E25: =IF(SD_Ex1_Score="D","SKIP", IF(AND(SD_Ex2_Ans="no", SD_Ex3_Ans="no"),"SKIP", IF(SD_Ex4_Ans="menu ▼","", IF(SD_Ex4_Ans="yes","A", IF(SD_Ex4_Ans="maybe","B", IF(SD_Ex4_Ans="potential future","C", IF(SD_Ex4_Ans="no","D",""))))))) -> SKIP | F25: Y | G25: Field observation or testing results confirm site sediment is impacted from an on-site upland source.
F26: M | G26: Any of the following is true.
F27: • | G27: Testing has been conducted, but results are unavailable, inadequate, or too limited to rule out an impact.
F28: • | G28: Too few samples have been tested to rule out a sediment impact.
F29: • | G29: An oil-like sheen is visible on site sediment, or LNAPL or DNAPL has been identified in surface water or in nearby soil or groundwater.
F30: • | G30: Contaminated surface water may pose a risk to site sediment, and relevant information isn't available to exclude a sediment concern.
F31: PF | G31: A timely cleanup of an upland portion of the site sediment isn't scheduled for imminent action or currently underway, leaving site sediment vulnerable to a potential future impact.
F32: N | G32: Site information confirms that site sediment isn't impacted by an on-site upland source.
C33: SD_Ex5 | D33: Is there an impact to sediment from an off-site upland source - either historically or currently? | E33: menu ▼ | G33: Contamination sources might include groundwater, surface water, permitted and unpermitted discharges, spills, bank erosion, or other sources. Identify information about historical and remaining sources and transport pathways to sediment from off-site upland sources and releases. Use upland remedial investigation information to see if the transport pathways are complete or controlled.
E34: =IF(SD_Ex1_Score="D","SKIP", IF(AND(SD_Ex2_Ans="no",SD_Ex3_Ans="no"),"SKIP", IF(SD_Ex5_Ans="menu ▼","", IF(SD_Ex5_Ans="yes","B", IF(SD_Ex5_Ans="maybe","B", IF(SD_Ex5_Ans="potential future","C", IF(SD_Ex5_Ans="no","D",""))))))) -> SKIP | F34: Y | G34: Current or historical impacts to sediment are confirmed from an off-site upland source.
F35: M | G35: Any of the following is true.
F36: • | G36: Upgradient groundwater contamination is known or suspected.
F37: • | G37: Bioassay testing information is unavailable or inadequate enough to rule out a sediment impact from an off-site upland source.
F38: • | G38: An unnatural oil-like sheen is observed on site surface water or nearby soil, or in groundwater from a suspected off-site upland source.
F39: • | G39: An off-site upland site storm water or wastewater outfall discharges, or has historically discharged to, site surface water.
F40: • | G40: An upland site has or had overwater activities (e.g., loading dock) that could impact site sediment.
F41: • | G41: Wood waste is, or has historically been observed, in site sediment (beach, intertidal, or subtidal areas).
F42: • | G42: Site surface water is contaminated from an off-site upland source.
F43: PF | G43: Site sediment currently is not impacted from a known off-site upland source but could become impacted in the future.
F44: N | G44: No off-site upland source has impacted, or has the potential to impact, site sediment.
D45: Exposure score ► | E45: =IF(OR(SD_Ex1_Score="",SD_Ex4_Score="",SD_Ex2_Score="",SD_Ex3_Score="",SD_Ex5_Score=""),"SHARPen it", IF(SD_Ex1_Score="D","D", IF(AND(SD_Ex2_Score="D",SD_Ex3_Score="D"),"D", IF(OR(SD_Ex2_Score="A",SD_Ex3_Score="A"),"A", IF(OR(SD_Ex2_Score="B",SD_Ex3_Score="B"),"B", IF(AND(SD_Ex2_Score="D",SD_Ex3_Score="D",OR(SD_Ex4_Score="A",SD_Ex5_Score="A",SD_Ex4_Score="B",SD_Ex5_Score="B",SD_Ex4_Score="C",SD_Ex5_Score="C")),"C","")))))) -> D
B47: 3 | C47: Severity | E47: Answers/Scores | G47: Tips
C48: SD_Sv1 | D48: Does any portion of the site area overlay a 303(d)-listed waterbody in Category 2, 3, 4a, 4b, or 5? | E48: menu ▼ | G48: Ecology conducts water quality assessments in streams, lakes, and marine waters. Use Ecology's Water Quality Atlas Map to find information to answer this question.
E49: =IF(SD_ExScore="D","SKIP", IF(SD_Sv1_Ans="menu ▼","", IF(SD_Sv1_Ans="yes",5, IF(SD_Sv1_Ans="maybe",3, IF(SD_Sv1_Ans="no",0,""))))) -> SKIP | G49: ► Water Quality Atlas Map
F50: Y | G50: At least a portion of the site is mapped within a 303(d)-listed water body.
F51: M | G51: The site is adjacent to a 303(d)-listed water body, or its estimated boundary intercepts a 303(d)-listed water body.
F52: N | G52: No portion of the site is mapped in or adjacent to a 303(d)-listed water body.
C53: SD_Sv2 | D53: Are any PBTs in site sediment? | E53: menu ▼ | G53: Compare contaminants identified in site sediment with chemicals listed in WAC 173-333-310[2] PBT list. Chemical source areas could include upland soil and upgradient groundwater.
E54: =IF(SD_ExScore="D","SKIP", IF(SD_Sv2_Ans="menu ▼","", IF(OR(SD_Sv2_Ans="yes",SD_Sv2_Ans="maybe"),"continue", IF(SD_Sv2_Ans="no",0,"")))) -> SKIP | G54: ▶ WAC 173-333-310. What chemicals or chemical groups are included on the PBT list?
F55: Y | G55: At least one Washington-listed PBT is confirmed in sediment.
F56: M | G56: Testing results aren't available, and a PBT source is known but not confirmed in upland soil or groundwater.
F57: N | G57: Sufficient information has been collected to show no PBT is present in sediment or an upland soil or groundwater source area.
C58: SD_Sv3 | D58: Is any PBT concentration in sediment greater than any listed in SCUM Tables 10-1 or 11-1? | E58: menu ▼ | G58: Compare site sediment contaminants with those listed in the following sources.
E59: =IF(SD_ExScore="D","SKIP", IF(SD_Sv3_Ans="menu ▼","", IF(SD_Sv3_Ans="yes",10, IF(SD_Sv3_Ans="maybe",6, IF(SD_Sv3_Ans="no",0,""))))) -> SKIP | G59: ► see SCUM Table 10-1, p 10-21 and Table 11-1, p 11-6
F60: Y | G60: At least one PBT concentration in sediment exceeds any criterion listed in either table, based on sufficient testing results.
F61: M | G61: At least one PBT concentration in sediment likely exceeds any criterion listed in either table, but more information is needed to confirm.
F62: N | G62: No PBT concentration in sediment exceeds the criteria in either table, based on sufficient information to rule out the presence of any PBT chemical.
C63: SD_Sv4 | D63: Does or has the site historically supported shellfish? | E63: menu ▼ | G63: Any marine bay or inlet likely has supported shellfish. Further, any river or any area on the Puget Sound is considered a shellfishing source. For more information on mapped shellfish habitat locations, see the following information sources.
E64: =IF(SD_ExScore="D","SKIP", IF(SD_Sv4_Ans="menu ▼","", IF(OR(SD_Sv4_Ans="yes",SD_Sv4_Ans="maybe"),5, IF(SD_Sv4_Ans="no",0,"")))) -> SKIP | G64: ► DFW Commercial wild stock geoduck clam fishery
G65: ► DOH Commercial Shellfish Map Viewer
G66: ► DOH Shellfish Safety Information
G67: ► DFW PHS on the Web
F68: Y | G68: Any of the following is true.
F69: • | G69: Shellfish are observed at the site.
F70: • | G70: The site is located on a shoreline of the Puget Sound or any shoreline of a stream.
F71: • | G71: The site historically has supported shellfish habitat.
F72: M | G72: Shellfish may have inhabited the site based on historical knowledge (e.g., tribal oral history) or could be supported after restoration.
F73: N | G73: Either of the following is true.
F74: • | G74: The site isn't located on a Puget Sound shoreline or on a shoreline of any stream.
F75: • | G75: No shellfish are present at the site, and shellfish habitat cannot be supported.
C76: SD_Sv5 | D76: Is the site accessible for fishing? | E76: menu ▼ | G76: Fishing may be conducted in contaminated areas putting fishers at risk of exposure during fishing activities and potentially during consumption of their catch. Identify potential fishing resources and whether they are physically accessible to fishers. Assume shoreline areas of the Puget Sound are considered to to support fish-bearing habitat.
E77: =IF(SD_ExScore="D","SKIP", IF(SD_Sv5_Ans="menu ▼","", IF(SD_Sv5_Ans="yes",5, IF(SD_Sv5_Ans="maybe",3, IF(SD_Sv5_Ans="no",0,""))))) -> SKIP | F77: Y | G77: Fishing resource areas are accessible to people who harvest or eat fish.
F78: M | G78: Fishing resource areas may be accessible to people who harvest or eat fish.
F79: N | G79: Fishing resource areas don't exist on site, or such areas are not accessible for fishing.
C80: SD_Sv6 | D80: Is the site in an area that supports a sensitive or critical habitat? | E80: menu ▼ | G80: On-site habitat indicators might include eelgrass, shellfish, herring, forage fish, salmonids, spawning habitat, shorebirds, marine mammals, or endangered or threatened species. Access information about these habitat indicators from the following online resources.
E81: =IF(SD_ExScore="D","SKIP", IF(SD_Sv6_Ans="menu ▼","", IF(SD_Sv6_Ans="yes",5, IF(SD_Sv6_Ans="maybe",3, IF(SD_Sv6_Ans="no",0,""))))) -> SKIP | G81: General priority habitat and species:
G82: ► DFW PHS on the Web
G83: Critical habitat (National Oceanic and Atmospheric Administration; NOAA):
G84: ► NOAA National NMFS ESA Critical Habitat Mapper
G85: Seagrass (Department of Natural Resources, DNR):
G86: ►DNR Puget Sound Eelgrass Monitoring Data Viewer
G87: ►DNR Nearshore Habitat Biotic Community Monitoring
G88: ►DNR Nearshore Habitat Inventory
G89: Shellfish:
G90: ► DFW Public clam, mussel, and oyster beaches
G91: ► DFW Commercial wild stock geoduck clam fishery
G92: ► DFW State Listed Species
G93: ► DOH Commercial Shellfish Map Viewer
G94: ► DOH Shellfish Safety Information
G95: Forage fish:
G96: ►DFW Coastal Intertidal Forage Fish Spawning Surveys
F97: Y | G97: Relevant information confirms at least one sensitive or critical habitat indicator is on site.
F98: M | G98: Relevant information isn't available, but at least one sensitive or critical habitat indicator may be on site.
F99: N | G99: Relevant information confirms no sensitive or critical habitat indicator is on site.
D100: Severity score | E100: =IF(SD_ExScore="D","4", IF(OR(SD_Sv1_Score="",SD_Sv2_Score="",SD_Sv3_Score="",SD_Sv4_Score="",SD_Sv5_Score="",SD_Sv6_Score=""),"SHARPen it", IF(SD_SvQSum>=SD_SvThresh,1, IF(SD_SvQSum>=SD_SvThresh*2/3,2, IF(SD_SvQSum>=SD_SvThresh/3,3,4))))) -> 4
B102: 4 | C102: Enter comments

Sheet IA
B3: Indoor Air Assessment | E3: =IF(OR(IA_ExScore="SHARPen it",IA_SvScore="SHARPen it",IA_Conf="menu ▼"),"SHARPen it", CONCATENATE(IA_ExScore,IA_SvScore)) -> D4
B5: 1 | C5: Select confidence level | E5: medium
B7: 2 | C7: Potential Exposure | E7: Answers/Scores | G7: Tips
C8: IA_Ex1 | D8: Is there an impact to indoor air that needs cleanup action, where indoor and outdoor ambient sources have been ruled out? | E8: no | G8: The indoor air point of compliance is throughout the site (WAC 173-340-750[6]). If screening levels are established, they may be cleanup levels or conservative values applied during an investigation such as Method B values protective of unrestricted land use. The ChemTox table lists volatiles that have CLARC screening levels for individual volatiles under both Methods B and C and for workers. To identify volatiles, look at chemicals marked as "yes" in the ChemTox table under the heading "Possible Vapor Intrusion”.
E9: =IF(IA_Ex1_Ans="menu ▼","", IF(IA_Ex1_Ans="yes","A", IF(IA_Ex1_Ans="maybe","B", IF(IA_Ex1_Ans="no","D","")))) -> D | G9: ► WAC 173-340-750 Cleanup standards to protect air quality
G10: ► ChemTox
G11: See the following guidance for additional information.
G12: ► CLARC "Vapor Intrusion Method B" Tab (will download)
G13: ► CLARC "Vapor Intrusion Method C" Tab
G14: ► CLARC "Vapor Intrusion Worker" Tab
G15: ► Guidance for Evaluating Soil Vapor Intrusion in Washington State, Investigation and Remedial Action
F16: Y | G16: Testing information confirms at least one volatile vapor level exceeds a screening level for indoor air.
F17: M | G17: Any of the following is true.
F18: • | G18: Testing information is available, and at least one volatile vapor level exceeds screening levels, but ambient air or products in the building cannot be excluded as the source.
F19: • | G19: Subsurface media concentrations exceed vapor intrusion screening levels, but indoor air has not yet been sampled.
F20: • | G20: Testing information isn't available, but an unnatural odor is noted by occupants.
F21: N | G21: Testing information confirms no volatile vapor level exceeds a screening level for indoor air.
C22: IA_Ex2 | D22: Are volatile petroleum chemical vapor levels greater than applicable soil vapor screening levels for soil, groundwater, or soil vapor? | E22: menu ▼ | G22: Volatile petroleum indicator chemicals include: benzene, toluene, ethylbenzene, and xylenes; ethylene dibromide; 1,2-dichloroethene; hexane; MTBE; and naphthalene. Default soil vapor screening distances for any of these chemicals are: 1) within 30 lateral feet of a building; or 2) within 15 vertical feet below a building's lowest point (e.g., crawl space or basement). Otherwise, site-specific vapor screening distances can be used, if established. Also, CLARC lists subsurface media screening levels protective of indoor air (Method B chemicals). See CLARC screening levels for subsurface media protective of indoor air. Also, see Ecology guidance for more information.
E23: =IF(OR(IA_Ex1_Score="D"),"SKIP", IF(IA_Ex2_Ans="menu ▼","", IF(IA_Ex2_Ans="yes","B", IF(IA_Ex2_Ans="maybe","B", IF(IA_Ex2_Ans="no","D",""))))) -> SKIP | G23: ► CLARC "Vapor Intrusion Method B" Tab
G24: ► Guidance for Evaluating Soil Vapor Intrusion in Washington State, Investigation and Remedial Action
F25: Y | G25: Both of the following are true.
F26: • | G26: At least one volatile petroleum chemical is in soil or groundwater within either default screening distance or a site-specific screening distance.
F27: • | G27: At least one volatile petroleum chemical level exceeds applicable soil vapor screening levels within either screening distance.
F28: M | G28: Both of the following are true.
F29: • | G29: At least one volatile petroleum chemical may be within a screening distance, but more information is needed to confirm.
F30: • | G30: Volatile petroleum chemical levels within a screening distance may exceed applicable soil vapor screening levels, but more information is needed to confirm.
F31: N | G31: Either of the following is true.
F32: • | G32: Volatile petroleum chemicals aren't present within any screening distance.
F33: • | G33: If present within any screening distance, volatile petroleum chemical levels do not exceed soil vapor screening levels.
C34: IA_Ex3 | D34: Are volatile non-petroleum chemical vapor levels greater than soil vapor screening levels in soil, groundwater, or soil vapor? | E34: menu ▼ | G34: Default vapor screening distances for volatile non-petroleum chemicals are within 100 lateral feet of a building or any vertical depth below a building's lowest point. Otherwise, site-specific vapor screening distances can be used, if established. Also, CLARC lists subsurface media screening levels protective of indoor air. See Ecology guidance for more information.
E35: =IF(OR(IA_Ex1_Score="D"),"SKIP", IF(IA_Ex3_Ans="menu ▼","", IF(IA_Ex3_Ans="yes","B", IF(IA_Ex3_Ans="maybe","B", IF(IA_Ex3_Ans="no","D",""))))) -> SKIP
G36: ► CLARC "Vapor Intrusion Method B" Tab
G37: ► Guidance for Evaluating Soil Vapor Intrusion in Washington State, Investigation and Remedial Action
F38: Y | G38: Both of the following are true.
F39: • | G39: At least one volatile non-petroleum chemical is in soil or groundwater within either default screening distance or a site-specific screening distance.
F40: • | G40: At least one volatile non-petroleum chemical level exceeds applicable soil vapor screening levels within either screening distance.
F41: M | G41: Both of the following are true.
F42: • | G42: At least one volatile non-petroleum chemical may be within a screening distance, but more information is needed to confirm.
F43: • | G43: Volatile non-petroleum chemical levels within a screening distances may exceed applicable soil vapor screening levels, but more information is needed to confirm.
F44: N | G44: Either of the following is true.
F45: • | G45: Volatile non-petroleum chemicals aren't present within any screening distance.
F46: • | G46: If present within any screening distance, volatile non-petroleum chemical levels do not exceed soil vapor screening levels.
C47: IA_Ex4 | D47: Is vapor intrusion being limited by mitigation measures? | E47: menu ▼ | G47: Example mitigation measures might include HVAC system adjustments, sub-slab depressurization systems, and vapor barriers.
E48: =IF(IA_Ex1_Score="D","SKIP", IF(AND(IA_Ex2_Score="D",IA_Ex3_Score="D"),"SKIP", IF(IA_Ex4_Ans="menu ▼","", IF(IA_Ex4_Ans="yes","C", IF(IA_Ex4_Ans="maybe","B", IF(IA_Ex4_Ans="no","A","")))))) -> SKIP | F48: Y | G48: A mitigation measure or system operates such that, if compromised or turned off, an exposure could be reactivated.
F49: M | G49: More information is needed to confirm a mitigation measure or system is in place and effectively operating as intended.
F50: N | G50: No mitigation measure or system is in place or operation.
D51: Exposure score ► | E51: =IF(OR(IA_Ex1_Score="",IA_Ex2_Score="",IA_Ex3_Score="",IA_Ex4_Score=""),"SHARPen it", IF(IA_Ex1_Score="D","D", IF(AND(IA_Ex2_Score="D",IA_Ex3_Score="D"),"D", IF(IA_Ex4_Score="A","A", IF(IA_Ex4_Score="B","B", IF(IA_Ex4_Score="C","C","")))))) -> D
B53: 3 | C53: Severity | E53: Answers/Scores | F53: Tips
C54: IA_Sv1 | D54: Is any extremely toxic volatile chemical in soil vapor or indoor air? | E54: menu ▼ | G54: Compare confirmed or suspected volatile chemicals in indoor air that are: 1) marked as "yes" in the ChemTox table under the heading "Possible Vapor Intrusion"; and 2) identified as "extremely" under the heading "Soil, Groundwater, Air".
E55: =IF(IA_ExScore="D","SKIP", IF(IA_Sv1_Ans="menu ▼","", IF(IA_Sv1_Ans="yes",10, IF(IA_Sv1_Ans="maybe",6, IF(IA_Sv1_Ans="no",0,""))))) -> SKIP | G55: ► ChemTox
F56: Y | G56: Any site volatile chemical is listed as extremely toxic in the ChemTox table.
F57: M | G57: Any chemical in indoor air may be listed as extremely toxic in the ChemTox table, but analytical data are not available to confirm.
F58: N | G58: No site volatile chemical is listed as extremely toxic in the ChemTox table.
C59: IA_Sv2 | D59: Is any very toxic volatile chemical in soil vapor or indoor air? | E59: menu ▼ | G59: Compare confirmed or suspected volatile chemicals in indoor air that are: 1) marked as "yes" in the ChemTox table under the heading "Possible Vapor Intrusion"; and 2) identified as "very" under the heading "Soil, Groundwater, Air".
E60: =IF(IA_ExScore="D","SKIP", IF(OR(IA_Sv1_Score=15,IA_Sv1_Score=10,IA_Sv1_Score=6),"SKIP", IF(IA_Sv2_Ans="menu ▼","", IF(IA_Sv2_Ans="yes",5, IF(IA_Sv2_Ans="maybe",3, IF(IA_Sv2_Ans="no",0,"")))))) -> SKIP | G60: ► ChemTox
F61: Y | G61: Any site volatile chemical is listed as very toxic in the ChemTox table.
F62: M | G62: Any chemical in indoor air may be listed as very toxic in the ChemTox table, but analytical data are not available to confirm.
F63: N | G63: No site volatile chemical is listed as very toxic in the ChemTox table.
C64: IA_Sv3 | D64: Are children or women of child-bearing age present in a potentially impacted building for extended periods of time? | E64: menu ▼ | G64: When considering possible affects of contaminated indoor air: 1) children are people from 0 up to 6 years old; and 2) women of childbearing age are approximately 13 to 50 years old. Children and women of childbearing age who may reside, work, or be a long-term guest or regular visitor (e.g., nanny) are more sensitive to indoor air contamination than other people. An exposure could recur, if an on-site, operating mitigation system is later turned off. Consider the likelihood of an elementary or middle school population when answering. This is especially important for trichloroethene vapor in indoor air.
E65: =IF(IA_ExScore="D","SKIP", IF(IA_Sv3_Ans="menu ▼","", IF(IA_Sv3_Ans="yes",5, IF(IA_Sv3_Ans="maybe",3, IF(IA_Sv3_Ans="no",0,""))))) -> SKIP | F65: Y | G65: Children and women of child-bearing age likely occupy a potentially impacted building for extended periods of time.
F66: M | G66: Either of the following is true.
F67: • | G67: Building occupancy populations or uses are unknown.
F68: • | G68: A vapor plume is expanding or suspected to be expanding in the direction of a building occupied or used by children and women of child-bearing age.
F69: N | G69: Site buildings can't be occupied because of reasons such as inhabitability, condemnation, or blocked entry.
D70: Severity score | E70: =IF(IA_ExScore="D","4", IF(OR(IA_Sv1_Score="",IA_Sv2_Score="",IA_Sv3_Score=""),"SHARPen it", IF(IA_SvQSum>=IA_SvThresh,1, IF(IA_SvQSum>=IA_SvThresh*2/3,2, IF(IA_SvQSum>=IA_SvThresh/3,3,4))))) -> 4
B72: 4 | C72: Enter comments

Sheet AF
B3: =IF(OR(AF_1Ans="menu ▼",AF_2Ans="menu ▼",AF_3Ans="menu ▼",AF_4Ans="menu ▼"),"Additional Factors (SHARPen it)", IF(OR(AF_1Ans="yes",AF_1Ans="maybe",AF_2Ans="yes",AF_2Ans="maybe",AF_3Ans="yes",AF_3Ans="maybe",AF_4Ans="yes",AF_4Ans="maybe"),"Additional Factors identified","Additional Factors")) -> Additional Factors identified
B5: 1 | C5: Additional factor questions | E5: Answers | G5: Tips
C6: AF_1 | D6: Multi-chemical types: Does the site have a screening or cleanup standard exceedance of multiple chemical types where cumulative or synergistic effects are a concern? | E6: no | G6: Potential cumulative or synergistic effects of multiple types of chemicals can be important factors during cleanup planning. These factors may not be directly related to specific exposure media or contact pathways and can include various chemical data groups. Filter chemical groups under the "Chemical Data Group" heading in CLARC's "Master CLARC Spreadsheet" tab. Common examples: carcinogenic polyaromatic hydrocarbons, herbicides, metals, polycarbonate biphenyls, pesticides, petroleum, volatile organic compounds, semi-volatile organic compounds, and others.
G7: ► CLARC "Master CLARC Spreadsheet" Tab (will download)
F8: Y | G8: Applicable multiple-chemical-type MTCA cleanup or screening levels are exceeded.
F9: M | G9: Applicable multiple-chemical-type MTCA cleanup or screening levels may be exceeded, but relevant information is needed to confirm.
F10: N | G10: No applicable multiple-chemical-type MTCA cleanup or screening levels are exceeded.
C11: AF_2 | D11: Risks to off-site people: Are people and other living things off-site at risk of exposure? | E11: maybe | G11: People and other living things can be at risk off site from contamination that has moved, or been moved, from the site to other areas, such as through "downwinder" exposures. Examples might include effluent or discharges from storm sewer systems, mining operations, manufacturing, or the Hanford Site. Consider whether off-site exposures might have occurred or are occurring from sources.
F12: Y | G12: People off site are at risk of exposure from site contamination.
F13: M | G13: An off-site exposure isn't confirmed but is likely.
F14: N | G14: Off-site exposures are unlikely.
C15: AF_3 | D15: Climate change impacts: Is the site vulnerable to any high-threat climate change factor? | E15: no | G15: Sites may be vulnerable to high-threat climate change impacts such as wildfire, flooding, landslide, and sea level rise. The level of threat can depend on the type of site (e.g., landfill, mine, etc.), media impacted (i.e., groundwater, sediment, soil), type of cleanup remedy (e.g., cap, treatment, etc.), and location. The vulnerability to climate change impacts increases for sites in specific locations, such as the following.
F16: • | G16: Flooding for sites located in either of the following.
G17: - in a floodplain
G18: - along or near a water body (i.e., marine shoreline, lake, creek, or river - notably one fed by snow melt)
F19: • | G19: Sea level rise for sites located along or near: 1) a marine shoreline; or 2) a tidally influenced stream or river.
F20: • | G20: Wildfire for sites located in or near a grassland or forested area.
F21: • | G21: Landslide for sites located in any of the following.
G22: - in or near an area of past landslides
G23: - in or near a steep area that recently experienced wildfire
G24: - atop an erosion-prone bluff
G25: For more information on potential vulnerabilities, see these Ecology references.
G26: ► Sustainable Remediation: Climate Change Resiliency and Green Remediation
G27: Read about potential vulnerabilities in chapter 3.
G28: ► TCP Maps
G29: See the climate change layers to visualize potential vulnerabilities.
F30: Y | G30: The site may be vulnerable to climate change impacts.
F31: M | G31: The site may be vulnerable to climate change impacts, but not enough relevant information is available to confirm.
F32: N | G32: The site isn't likely to be vulnerable to climate change impacts.
C33: AF_4 | D33: Plant and animal tissue: Is relevant testing information available that reports contaminant concentrations in plant or animal tissue from or near the site? | E33: no | G33: While testing information for plant and animal tissue is rare or often unavailable, such information is useful for assessing potential risks to people and other living things that consume plants and animals as food sources in the area.
F34: Y | G34: Testing information is available.
F35: N | G35: Testing information isn't available.
B37: 2 | C37: Enter comments

Sheet Part1
C3: =IF(SiteName="","Site Name = SHARPen it",SiteName) -> CHS Sun Basin Petroleum Facility Diesel Release
C4: SHARP Report — Part 1 of 2
C5: =IF(XAssess="menu ▼","• Assessment incomplete. SHARPen it.", IF(XAssess="first assessment","• SHARP first assessment", IF(XAssess="re-assessment","• SHARP re-assessment results"))) -> • SHARP first assessment | H5: =IF(OR(XAssess="menu ▼",XAssess="first assessment"),"This section is blank if this is a SHARP first assessment", IF(XAssess="re-assessment","♦ Historic SHARP first assessment results","")) -> This section is blank if this is a SHARP first assessment
C6: • SHARP Tool Version | F6: =SHARPVersionCurrent -> v2024.02.20 | H6: =IF(OR(XAssess="menu ▼",XAssess="first assessment"),""," ♦ SHARP Tool version") ->  | I6: =IF(OR(XAssess="menu ▼",XAssess="first assessment"),"",FirstSHARPVersion) -> 
C7: • SHARP rating | F7: =IF(SHARPRating="SHARPen it","SHARPen it",SHARPRating) -> Low | H7: =IF(OR(XAssess="menu ▼",XAssess="first assessment"),""," ♦ SHARP rating") ->  | I7: =IF(XAssess="menu ▼","", IF(XAssess="first assessment","", IF(XAssess="re-assessment",FirstSHARPRating))) -> 
C8: • SHARP date | F8: =IF(AssessDate="","SHARPen it",AssessDate) -> 2024-03-04 | H8: =IF(OR(XAssess="menu ▼",XAssess="first assessment"),""," ♦ SHARP date") ->  | I8: =IF(OR(XAssess="menu ▼",XAssess="first assessment"),"",FirstAssessDate) -> 
C9: • EJFlagged? | F9: =IF(EJFlag="Respond to all fields","SHARPen it", IF(EJFlag="respond to all fields","", IF(EJFlag="EJFlagged: Overridden","✔️– Overridden", IF(EJFlag="EJFlagged","✔️", IF(EJFlag="No EJFlag","🚫",""))))) -> ✔️ | H9: =IF(OR(XAssess="menu ▼",XAssess="first assessment"),""," ♦ EJFlagged?") ->  | I9: =IF(FirstEJFlag="menu ▼","", IF(FirstEJFlag="EJFlagged: Overridden","✔️– Overridden", IF(FirstEJFlag="EJFlagged","✔️", IF(FirstEJFlag="No EJFlag","🚫","")))) -> 
C10: • LD data confidence level | F10: =IF(LD_Confidence="menu ▼","SHARPen it",LD_Confidence) -> low | H10: =IF(OR(XAssess="menu ▼",XAssess="first assessment"),""," ♦ LD data confidence level") ->  | I10: =IF(OR(XAssess="menu ▼",XAssess="first assessment"),"",FirstLD_Confidence) -> 
C11: • Cleanup milestone | F11: =IF(CleanupMilestone="menu ▼","SHARPen it",CleanupMilestone) -> initial investigation | H11: =IF(OR(XAssess="menu ▼",XAssess="first assessment"),""," ♦ Cleanup milestone") ->  | I11: =IF(OR(XAssess="menu ▼",XAssess="first assessment"),"",FirstCleanupMilestone) -> 
C12: • Assessor | F12: =IF(Assessor="","SHARPen it",Assessor) -> Sara Fulton | H12: =IF(OR(XAssess="menu ▼",XAssess="first assessment"),""," ♦ First assessor") ->  | I12: =IF(OR(XAssess="menu ▼",XAssess="first assessment"),"",FirstAssessor) -> 
C13: Assessment Media | F13: Scores | G13: Conf | H13: Additional Factors | J13: Ecology Info
C14: Indoor air | F14: =IF(OR(IA_ExScore="SHARPen it",IA_SvScore="SHARPen it"),"SHARPen it",IA_Score) -> D4 | G14: =IF(IA_Conf="menu ▼","SHARPen it",IA_Conf) -> medium | H14: multiple chemical types | I14: =IF(AF_1Ans="menu ▼","SHARPen it", IF(OR(AF_1Ans="yes",AF_1Ans="maybe"),"✔️", IF(AF_1Ans="no","🚫",""))) -> 🚫 | J14: ERTS | K14: =IF(ERTS="","n/a",ERTS) -> 729023
C15: Groundwater | F15: =IF(OR(GW_ExScore="SHARPen it",GW_SvScore="SHARPen it"),"SHARPen it",GW_Score) -> B4 | G15: =IF(GW_Conf="menu ▼","SHARPen it",GW_Conf) -> medium | H15: risk to off-site people | I15: =IF(AF_2Ans="menu ▼","SHARPen it", IF(OR(AF_2Ans="yes",AF_2Ans="maybe"),"✔️", IF(AF_2Ans="no","🚫",""))) -> ✔️ | J15: CSID | K15: =IF(CSID="","SHARPen it",CSID) -> 17003
C16: Surface water | F16: =IF(OR(SW_ExScore="SHARPen it",SW_SvScore="SHARPen it"),"SHARPen it",SW_Score) -> D4 | G16: =IF(SW_Conf="menu ▼","SHARPen it",SW_Conf) -> high | H16: climate change impacts | I16: =IF(AF_3Ans="menu ▼","SHARPen it", IF(OR(AF_3Ans="yes",AF_3Ans="maybe"),"✔️", IF(AF_3Ans="no","🚫",""))) -> 🚫 | J16: FSID | K16: =IF(FSID="","SHARPen it",FSID) -> 5629891
C17: Sediment | F17: =IF(OR(SD_ExScore="SHARPen it",SD_SvScore="SHARPen it"),"SHARPen it",SD_Score) -> D4 | G17: =IF(SD_Conf="menu ▼","SHARPen it",SD_Conf) -> high | H17: plant/animal tissue data | I17: =IF(AF_4Ans="menu ▼","SHARPen it", IF(OR(AF_4Ans="yes",AF_4Ans="maybe"),"✔️", IF(AF_4Ans="no","🚫",""))) -> 🚫 | J17: VCP | K17: =IF(VCP="","n/a",VCP) -> n/a
C18: Soil | F18: =IF(OR(SL_ExScore="SHARPen it",SL_SvScore="SHARPen it"),"SHARPen it",SL_Score) -> C4 | G18: =IF(SL_Conf="menu ▼","SHARPen it",SL_Conf) -> medium | J18: UST ID | K18: =IF(UST="","n/a",UST) -> n/a
J19: LUST ID | K19: =IF(LUST="","n/a",LUST) -> n/a
C20: Location and Land Use Info
C21: =_xlfn.CONCAT(Address,", ",City,", ",County, " County, ",Zip) -> 2 Division Street West, Quincy, Grant County, 98848 | I21: Responsible unit – | J21: =Responsible_Unit -> ERO
C22: Parcel | E22: =IF(Parcel="","SHARPen it",Parcel) -> SHARPen it | I22: Land use – | J22: =Landuse -> menu ▼
C23: Source/source area description
C24: =IF(SourceArea="","no comments",SourceArea) -> According to the SPILLs report, the cause of the release was due to mechanical failure (The wind caused an arm to fall into a valve opening it spilling 104 gallons of diesel into concrete and asphalt parking area and water oil separator containment).
C29: Local demographics comments
C30: =IF(LD_Comments="","no comments",LD_Comments) -> no comments
C35: Soil comments
C36: =IF(SL_Comments="","no comments",SL_Comments) -> The site is covered in concrete/asphalt however there are numerous cracks throughout. These cracks could have allowed the diesel to seep into the soil.
C41: Groundwater comments
C42: =IF(GW_Comments="","no comments",GW_Comments) -> The cracks in the concrete/asphalt may have allowed diesel fuel to seep into the ground. Groundwater is at approximately 17.5 feet bgs.
C46: Surface water comments
C47: =IF(SW_Comments="","no comments",SW_Comments) -> no comments
C52: Sediment comments
C53: =IF(SD_Comments="","no comments",SD_Comments) -> no comments
C58: Indoor air comments
C59: =IF(IA_Comments="","no comments",IA_Comments) -> no comments
C64: Additional factors comments
C65: =IF(AF_Comments="","no comments",AF_Comments) -> no comments
C70: Site narrative summary
C71: =IF(SiteNarrative=""," No site narrative entered! Incomplete assessment!",SiteNarrative) -> According to the SPILLs report, the cause of the release was due to mechanical failure (The wind caused an arm to fall into a valve opening it spilling 104 gallons of diesel into concrete and asphalt parking area and water oil separator containment). Photos taken by SPILLS show deep cracks in the concrete/asphalt, suspect that some of the diesel fuel seeped into those cracks. Per Shawn Conroy, they plan to seal the cracks but not replace the concrete/asphalt. At this time, no further cleanup work is expected at this time.

Sheet Part2
C3: =SiteNamePart1 -> CHS Sun Basin Petroleum Facility Diesel Release | H3: SHARP Report — Part 2 of 2
C4: =TEXT(AssessDate, "MM/DD/YYYY") -> 03/04/2024 | H4: Conceptual site model
C5: =IF(XAssess="first assessment","SHARP First Assessment", IF(XAssess="re-assessment","SHARP Re-assessment", IF(XAssess="menu ▼","SHARP first/re-assessment = SHARPen it","SHARPen it"))) -> SHARP First Assessment
C6: =IF(SHARPRating="SHARPen it","SHARP Rating = SHARPen it", _xlfn.CONCAT(SHARPRating," SHARP Rating")) -> Low SHARP Rating
C40: ▼ Hidden ▼
C41: =SL_Score -> C4
C42: =CONCATENATE("soil",CHAR(10),SL_Conf, " confidence") -> soil medium confidence | E42: =CONCATENATE(SL!E3," ",SL_Score,CHAR(10),SL_Conf, " confidence") -> C4 C4 medium confidence
C43: =GW_Score -> B4
C44: =CONCATENATE("groundwater",CHAR(10),GW_Conf, " confidence") -> groundwater medium confidence | E44: =CONCATENATE(GW!E3," ",GW_Score,CHAR(10),GW_Conf, " confidence") -> B4 B4 medium confidence
C45: =SW_Score -> D4
C46: =CONCATENATE("surface water",CHAR(10),SW_Conf, " confidence") -> surface water high confidence | E46: =CONCATENATE(SW!E3," ",SW_Score,CHAR(10),SW_Conf, " confidence") -> D4 D4 high confidence
C47: =SD_Score -> D4
C48: =CONCATENATE("sediment",CHAR(10),SD_Conf, " confidence") -> sediment high confidence | E48: =CONCATENATE(SD!E3," ",SD_Score,CHAR(10),SD_Conf, " confidence") -> D4 D4 high confidence
C49: =IA_Score -> D4
C50: =CONCATENATE("indoor air",CHAR(10),IA_Conf, " confidence") -> indoor air medium confidence | E50: =CONCATENATE(IA!E3," ",IA_Score,CHAR(10),IA_Conf, " confidence") -> D4 D4 medium confidence

Sheet ChemTox
B3: Chemical Toxicity Reference Table
D4: Toxicity Category
B5: Chemical Name | C5: Possible Vapor Intrusion | D5: Soil, Groundwater, Indoor Air | E5: Surface Water | F5: CAS #
B6: acenaphthene | E6: extremely (only freshwater) | F6: 83-32-9
B7: acephate | D7: extremely | E7: extremely (only freshwater) | F7: 30560-19-1
B8: acetaldehyde | C8: yes | E8: extremely (only freshwater) | F8: 75-07-0
B9: acetochlor | F9: 34256-82-1
B10: acetone | F10: 67-64-1
B11: acetone cyanohydrin | D11: very | F11: 75-86-5
B12: acetonitrile | C12: yes | F12: 75-05-8
B13: acetophenone | F13: 98-86-2
B14: acifluorfen, sodium | F14: 62476-59-9
B15: acrolein | C15: yes | D15: extremely | F15: 107-02-8
B16: acrylamide | D16: very | F16: 79-06-1
B17: acrylic acid | D17: very | F17: 79-10-7
B18: acrylonitrile | C18: yes | D18: very | F18: 107-13-1
B19: alachlor | E19: extremely | F19: 15972-60-8
B20: alar | F20: 1596-84-5
B21: aldicarb | D21: very | E21: extremely | F21: 116-06-3
B22: aldicarb sulfone | D22: very | F22: 1646-88-4
B23: aldrin | D23: extremely | E23: extremely | F23: 309-00-2
B24: ally | F24: 74223-64-6
B25: allyl alcohol | D25: extremely | F25: 107-18-6
B26: allyl chloride | C26: yes | D26: very | F26: 107-05-1
B27: aluminum | D27: very | F27: 7429-90-5
B28: aluminum phosphide | D28: extremely | F28: 20859-73-8
B29: amdro | E29: extremely | F29: 67485-29-4
B30: ametryn | F30: 834-12-8
B31: aminobiphenyl;4- | D31: extremely | F31: 92-67-1
B32: aminophenol;m- | F32: 591-27-5
B33: amitraz | D33: very | F33: 33089-61-1
B34: ammonia | F34: 7664-41-7
B35: ammonium perchlorate | D35: very | F35: 7790-98-9
B36: ammonium sulfamate | F36: 7773-06-0
B37: aniline | D37: very | E37: extremely (only freshwater) | F37: 62-53-3
B38: anthracene | E38: extremely | F38: 120-12-7
B39: antimony | D39: extremely | F39: 7440-36-0
B40: antimony pentoxide | D40: very | F40: 1314-60-9
B41: antimony potassium tartrate | D41: very | F41: 28300-74-5
B42: antimony tetroxide | D42: extremely | F42: 1332-81-6
B43: antimony trioxide | D43: extremely | F43: 1309-64-4
B44: apollo | E44: extremely | F44: 74115-24-5
B45: aramite | E45: extremely | F45: 140-57-8
B46: arsenic | D46: extremely | F46: 7440-38-2
B47: arsine | D47: extremely | F47: 7784-42-1
B48: asbestos | D48: extremely | F48: 1332-21-4
B49: assure | F49: 76578-14-8
B50: asulam | F50: 3337-71-1
B51: atrazine | E51: extremely | F51: 1912-24-9
B52: avermectin B1 | D52: extremely | E52: extremely | F52: 65195-55-3
B53: azobenzene | D53: very | F53: 103-33-3
B54: barium and compounds | D54: very | F54: 7440-39-3
B55: baygon | D55: very | F55: 114-26-1
B56: bayleton | F56: 43121-43-3
B57: baythroid | F57: 68359-37-5
B58: benefin | F58: 1861-40-1
B59: benomyl | F59: 17804-35-2
B60: bentazon | F60: 25057-89-0
B61: benzaldehyde | F61: 100-52-7
B62: benzene | C62: yes | D62: very | F62: 71-43-2
B63: benzenethiol | D63: very | F63: 108-98-5
B64: benzidine | D64: extremely | F64: 92-87-5
B65: benzo[a]anthracene | D65: use cPAH TEQ - see benzo(a)pyrene | F65: 56-55-3
B66: benzo[a]pyrene (also use for cPAH TEQ) | D66: Extremely | F66: 50-32-8
B67: benzo[b]fluoranthene | D67: use cPAH TEQ - see benzo(a)pyrene | F67: 205-99-2
B68: benzo[e]pyrene | D68: extremely | F68: 192-97-2
B69: benzo[k]fluoranthene | D69: use cPAH TEQ - see benzo(a)pyrene | F69: 207-08-9
B70: benzoic acid | F70: 65-85-0
B71: benzotrichloride | D71: extremely | F71: 98-07-7
B72: benzyl alcohol | F72: 100-51-6
B73: benzyl chloride | C73: yes | D73: very | F73: 100-44-7
B74: beryllium | D74: extremely | F74: 7440-41-7
B75: beta-chloronaphthalene | F75: 91-58-7
B76: bidrin | D76: extremely | F76: 141-66-2
B77: biphenthrin | F77: 82657-04-3
B78: biphenyl;1,1- | D78: very | F78: 92-52-4
B79: bis(2-chloro-1-methyl-ethyl)ether | F79: 108-60-1
B80: bis(2-chloroethoxy)methane | D80: very | F80: 111-91-1
B81: bis(2-chloroethyl)ether | D81: very | F81: 111-44-4
B82: bis(2-ethylhexyl) phthalate (DEHP) | F82: 117-81-7
B83: bis(chloromethyl)ether | D83: extremely | F83: 542-88-1
B84: bisphenol a | F84: 80-05-7
B85: boron | F85: 7440-42-8
B86: bromate | D86: very | F86: 15541-45-4
B87: bromoacetic acid | F87: 79-08-3
B88: bromobenzene | C88: yes | F88: 108-86-1
B89: bromochloromethane | F89: 74-97-5
B90: bromodichloromethane | C90: yes | F90: 75-27-4
B91: bromoethene | C91: yes | D91: very | F91: 593-60-2
B92: bromoform | C92: yes | F92: 75-25-2
B93: bromomethane | C93: yes | D93: very | F93: 74-83-9
B94: bromophos | F94: 2104-96-3
B95: bromoxynil | F95: 1689-84-5
B96: bromoxynil octanoate | F96: 1689-99-2
B97: butadiene;1,3- | C97: yes | D97: extremely | F97: 106-99-0
B98: butanol;n- | F98: 71-36-3
B99: butyl alcohol;tert- | F99: 75-65-0
B100: butyl benzyl phthalate | F100: 85-68-7
B101: butylate | F101: 2008-41-5
B102: butylphthalyl butylglycolate | F102: 85-70-1
B103: butyric acid;4-(2-methyl-4-chlorophenoxy)- | F103: 94-81-5
B104: cacodylic acid | F104: 75-60-5
B105: cadmium | D105: extremely | E105: extremely (only freshwater) | F105: 7440-43-9
B106: calcium cyanide | D106: very | F106: 592-01-8
B107: caprolactam | D107: very | F107: 105-60-2
B108: captafol | D108: very | F108: 2425-06-01
B109: captan | F109: 133-06-2
B110: carbaryl | F110: 63-25-2
B111: carbofuran | F111: 1563-66-2
B112: carbon disulfide | C112: yes | F112: 75-15-0
B113: carbon tetrachloride | C113: yes | D113: very | F113: 56-23-5
B114: carbosulfan | F114: 55285-14-8
B115: carboxin | F115: 5234-68-4
B116: cerium oxide and cerium compounds | D116: very | F116: 1306-38-3
B117: chloral hydrate | F117: 302-17-0
B118: chloramben | F118: 133-90-4
B119: chloranil | F119: 118-75-2
B120: chlordane | D120: very | E120: extremely | F120: 12789-03-6
B121: chlordane (alpha) | D121: very | F121: 5103-71-9
B122: chlordane (gamma) | D122: very | F122: 5103-74-2
B123: chlordecone (kepone) | D123: extremely | F123: 143-50-0
B124: chloride | F124: 16887-00-6
B125: chlorimuron-ethyl | F125: 90982-32-4
B126: chlorine | D126: extremely | F126: 7782-50-5
B127: chlorine cyanide | F127: 506-77-4
B128: chlorine dioxide | D128: extremely | F128: 10049-04-4
B129: chlorite | F129: 7758-19-2
B130: chloro-1,1-difluoroethane;1- | F130: 75-68-3
B131: chloro-1,3-butadiene;2- | C131: yes | F131: 126-99-8
B132: chloro-2-methylaniline hydrochloride;4- | F132: 3165-93-3
B133: chloro-2-methylaniline;4- | D133: very | F133: 95-69-2
B134: chloroacetic acid | D134: very | F134: 79-11-8
B135: chloroacetophenone;2- | D135: extremely | F135: 532-27-4
B136: chloroaniline;p- | D136: very | F136: 106-47-8
B137: chlorobenzene | C137: yes | F137: 108-90-7
B138: chlorobenzilate | F138: 510-15-6
B139: chlorobenzoic acid;p- | F139: 74-11-3
B140: chlorobenzotrifluoride;4- | D140: very | F140: 98-56-6
B141: chlorobutane;1- | F141: 109-69-3
B142: chlorocresol | F142: 59-50-7
B143: chlorodifluoromethane | C143: yes | F143: 75-45-6
B144: chloroform | C144: yes | F144: 67-66-3
B145: chloromethane | C145: yes | F145: 74-87-3
B146: chloromethyl methyl ether | D146: extremely | F146: 107-30-2
B147: chloronitrobenzene;o- | D147: extremely | F147: 88-73-3
B148: chloronitrobenzene;p- | D148: very | F148: 100-00-5
B149: chlorophenol; 2- | F149: 95-57-8
B150: chlorothalonil | F150: 1897-45-6
B151: chlorotoluene;o- | F151: 95-49-8
B152: chlorotoluene;p- | F152: 106-43-4
B153: chlorpropham | F153: 101-21-3
B154: chlorpyrifos | D154: very | E154: extremely | F154: 2921-88-2
B155: chlorpyrifos-methyl | F155: 5598-13-0
B156: chlorsulfuron | F156: 64902-72-3
B157: chlorthiophos | D157: very | F157: 60238-56-4
B158: chromium (III) | F158: 16065-83-1
B159: chromium (total) | F159: 7440-47-3
B160: chromium (VI) | D160: extremely | F160: 18540-29-9
B161: chrysene | D161: use cPAH TEQ - see benzo(a)pyrene | F161: 218-01-9
B162: cobalt | D162: extremely | F162: 7440-48-4
B163: coke oven emissions | F163: E649830
B164: copper | F164: 7440-50-8
B165: copper cyanide | F165: 544-92-3
B166: cresol;m- | F166: 108-39-4
B167: cresol;o- | F167: 95-48-7
B168: cresol;p- | F168: 106-44-5
B169: cresols | F169: 1319-77-3
B170: crotonaldehyde | D170: very | F170: 123-73-9
B171: cumene | C171: yes | F171: 98-82-8
B172: cyanazine | D172: very | F172: 21725-46-2
B173: cyanide | D173: very | F173: 57-12-5
B174: cyanogen | D174: very | F174: 460-19-5
B175: cyanogen bromide | F175: 506-68-3
B176: cyclohexane | C176: yes | F176: 110-82-7
B177: cyclohexanone | C177: yes | F177: 108-94-1
B178: cyclohexylamine | F178: 108-91-8
B179: cyromazine | F179: 66215-27-8
B180: dacthal | F180: 1861-32-1
B181: dalapon, sodium salt | F181: 75-99-0
B182: danitol | F182: 39515-41-8
B183: DDD | D183: extremely | F183: 72-54-8
B184: DDE | D184: extremely | F184: 72-55-9
B185: DDT | D185: very | E185: extremely | F185: 50-29-3
B186: decabromodiphenyl ether (PBDE-209) | F186: 1163-19-5
B187: demeton | D187: extremely | E187: extremely | F187: 8065-48-3
B188: di(2-ethylhexyl)adipate | F188: 103-23-1
B189: diallate | F189: 2303-16-4
B190: diazinon | D190: very | E190: extremely | F190: 333-41-5
B191: dibenz[a,h]anthracene | D191: use cPAH TEQ - see benzo(a)pyrene | F191: 53-70-3
B192: dibenzofuran | D192: very | F192: 132-64-9
B193: dibromo-3-chloropropane;1,2- | C193: yes | D193: extremely | F193: 96-12-8
B194: dibromoacetic acid | F194: 631-64-1
B195: dibromobenzene;1,4- | F195: 106-37-6
B196: dibromochloromethane | F196: 124-48-1
B197: di-butyl phthalate | F197: 84-74-2
B198: dicamba | F198: 1918-00-9
B199: dichloramine | F199: 3400-09-07
B200: dichloro-2-butene;1,4- | F200: 764-41-0
B201: dichloro-2-butene;trans-1,4- | F201: 110-57-6
B202: dichloroacetic acid | D202: very | F202: 79-43-6
... 452 more rows

Sheet Codes (hidden)
B1: Assessor Name | C1: =Assessor -> Sara Fulton | D1: =C1 -> Sara Fulton
B2: Time (hrs) =
B3: Version | C3: 2024.02.02A
B5: Reference | C5: Answers | D5: Scores
B6: SL_Ex1 | C6: =SL_Ex1_Ans -> maybe | D6: =SL_Ex1_Score -> continue
B7: SL_Ex2 | C7: =SL_Ex2_Ans -> maybe | D7: =SL_Ex2_Score -> B
B8: SL_Ex3 | C8: =SL_Ex3_Ans -> no | D8: =SL_Ex3_Score -> D
B9: SL_Ex4 | C9: =SL_Ex4_Ans -> yes | D9: =SL_Ex4_Score -> C
B10: SL_Sv1 | C10: =SL_Sv1_Ans -> no | D10: =SL_Sv1_Score -> 0
B11: SL_Sv2 | C11: =SL_Sv2_Ans -> no | D11: =SL_Sv2_Score -> 0
B12: SL_Sv3 | C12: =SL_Sv3_Ans -> no | D12: =SL_Sv3_Score -> 0
B13: SL_Sv4 | C13: =SL_Sv4_Ans -> no | D13: =SL_Sv4_Score -> 0
B14: SL_Sv5 | C14: =SL_Sv5_Ans -> no | D14: =SL_Sv5_Score -> 0
B15: SL_Sv6 | C15: =SL_Sv6_Ans -> maybe | D15: =SL_Sv6_Score -> 3
B16: SL_Sv7 | C16: =SL_Sv7_Ans -> no | D16: =SL_Sv7_Score -> 0
B17: GW_Ex1 | C17: =GW_Ex1_Ans -> maybe | D17: =GW_Ex1_Score -> continue
B18: GW_Ex2 | C18: =GW_Ex2_Ans -> maybe | D18: =GW_Ex2_Score -> B
B19: GW_Sv1 | C19: =GW_Sv1_Ans -> no | D19: =GW_Sv1_Score -> 0
B20: GW_Sv2 | C20: =GW_Sv2_Ans -> no | D20: =GW_Sv2_Score -> 0
B21: GW_Sv3 | C21: =GW_Sv3_Ans -> no | D21: =GW_Sv3_Score -> 0
B22: GW_Sv4 | C22: =GW_Sv4_Ans -> no | D22: =GW_Sv4_Score -> 0
B23: GW_Sv5 | C23: =GW_Sv5_Ans -> maybe | D23: =GW_Sv5_Score -> 3
B24: GW_Sv6 | C24: =GW_Sv6_Ans -> no | D24: =GW_Sv6_Score -> 0
B25: GW_Sv7 | C25: =GW_Sv7_Ans -> maybe | D25: =GW_Sv7_Score -> 3
B26: GW_Sv8 | C26: =GW_Sv8_Ans -> no | D26: =GW_Sv8_Score -> 0
B27: SW_Ex1 | C27: =SW_Ex1_Ans -> no | D27: =SW_Ex1_Score -> D
B28: SW_Ex2 | C28: =SW_Ex2_Ans -> menu ▼ | D28: =SW_Ex2_Score -> SKIP
B29: SW_Ex3 | C29: =SW_Ex3_Ans -> menu ▼ | D29: =SW_Ex3_Score -> SKIP
B30: SW_Ex4 | C30: =SW_Ex4_Ans -> menu ▼ | D30: =SW_Ex4_Score -> SKIP
B31: SW_Sv1 | C31: =SW_Sv1_Ans -> menu ▼ | D31: =SW_Sv1_Score -> SKIP
B32: SW_Sv2 | C32: =SW_Sv2_Ans -> menu ▼ | D32: =SW_Sv2_Score -> SKIP
B33: SW_Sv3 | C33: =SW_Sv3_Ans -> menu ▼ | D33: =SW_Sv3_Score -> SKIP
B34: SW_Sv4 | C34: =SW_Sv4_Ans -> menu ▼ | D34: =SW_Sv4_Score -> SKIP
B35: SW_Sv5 | C35: =SW_Sv5_Ans -> menu ▼ | D35: =SW_Sv5_Score -> SKIP
B36: SD_Ex1 | C36: =SD_Ex1_Ans -> menu ▼ | D36: =SD_Ex1_Score -> D
B37: SD_Ex2 | C37: =SD_Ex2_Ans -> menu ▼ | D37: =SD_Ex2_Score -> SKIP
B38: SD_Ex3 | C38: =SD_Ex3_Ans -> menu ▼ | D38: =SD_Ex3_Score -> SKIP
B39: SD_Ex4 | C39: =SD_Ex4_Ans -> menu ▼ | D39: =SD_Ex4_Score -> SKIP
B40: SD_Ex5 | C40: =SD_Ex5_Ans -> menu ▼ | D40: =SD_Ex5_Score -> SKIP
B41: SD_Sv1 | C41: =SD_Sv1_Ans -> menu ▼ | D41: =SD_Sv1_Score -> SKIP
B42: SD_Sv2 | C42: =SD_Sv2_Ans -> menu ▼ | D42: =SD_Sv2_Score -> SKIP
B43: SD_Sv3 | C43: =SD_Sv3_Ans -> menu ▼ | D43: =SD_Sv3_Score -> SKIP
B44: SD_Sv4 | C44: =SD_Sv4_Ans -> menu ▼ | D44: =SD_Sv4_Score -> SKIP
B45: SD_Sv5 | C45: =SD_Sv5_Ans -> menu ▼ | D45: =SD_Sv5_Score -> SKIP
B46: SD_Sv6 | C46: =SD_Sv6_Ans -> menu ▼ | D46: =SD_Sv6_Score -> SKIP
B47: IA_Ex1 | C47: =IA_Ex1_Ans -> no | D47: =IA_Ex1_Score -> D
B48: IA_Ex2 | C48: =IA_Ex2_Ans -> menu ▼ | D48: =IA_Ex2_Score -> SKIP
B49: IA_Ex3 | C49: =IA_Ex3_Ans -> menu ▼ | D49: =IA_Ex3_Score -> SKIP
B50: IA_Ex4 | C50: =IA_Ex4_Ans -> menu ▼ | D50: =IA_Ex4_Score -> SKIP
B51: IA_Sv1 | C51: =IA_Sv1_Ans -> menu ▼ | D51: =IA_Sv1_Score -> SKIP
B52: IA_Sv2 | C52: =IA_Sv2_Ans -> menu ▼ | D52: =IA_Sv2_Score -> SKIP
B53: IA_Sv3 | C53: =IA_Sv3_Ans -> menu ▼ | D53: =IA_Sv3_Score -> SKIP
B55: SL_Conf | C55: =SL_Conf -> medium
B56: GW_Conf | C56: =GW_Conf -> medium
B57: SW_Conf | C57: =SW_Conf -> high
B58: SD_Conf | C58: =SD_Conf -> high
B59: IA_Conf | C59: =IA_Conf -> medium
B61: AF_1 | C61: =AF_1Ans -> no
B62: AF_2 | C62: =AF_2Ans -> maybe
B63: AF_3 | C63: =AF_3Ans -> no
B64: AF_4 | C64: =AF_4Ans -> no
B66: LD_DemoIndex | C66: =LD_P80_DemoIndex -> 95
B67: LD_SubDemoIndex | C67: =LD_P80_SubDemoIndex -> 89
B68: LD_Color | C68: =LD_P80_Color -> 97
B69: LD_Income | C69: =LD_P80_Income -> 80
B70: LD_Unemployed | C70: =LD_P80_Unemployed -> 49
B71: LD_English | C71: =LD_P80_English -> 92
B72: LD_School | C72: =LD_P80_School -> 95
B73: LD_Under5 | C73: =LD_P80_Under5 -> 86
B74: LD_Over64 | C74: =LD_P80_Over64 -> 17
B75: LD_LowLife | C75: =LD_P80_LowLife -> 17
B76: EHDRank | C76: =EHDRank -> 10
B77: LD_Confidence | C77: =LD_Confidence -> low
B78: LD_Override | C78: =LD_Override -> no
B80: CSID | C80: =CSID -> 17003
B81: Date | C81: =AssessDate -> 2024-03-04
B83: Land use | C83: =Landuse -> menu ▼
B84: MTCA milestone | C84: =CleanupMilestone -> initial investigation
B85: SL_ExScore | C85: =SL_ExScore -> C
B86: SL_SvScore | C86: =SL_SvScore -> 4
B87: GW_ExScore | C87: =GW_ExScore -> B
B88: GW_SvScore | C88: =GW_SvScore -> 4
B89: SW_ExScore | C89: =SW_ExScore -> D
B90: SW_SvScore | C90: =SW_SvScore -> 4
B91: SD_ExScore | C91: =SD_ExScore -> D
B92: SD_SvScore | C92: =SD_SvScore -> 4
B93: IA_ExScore | C93: =IA_ExScore -> D
B94: IA_SvScore | C94: =IA_SvScore -> 4

Sheet Rating (hidden)
C2: SHARP Rating | F2: =IF(OR(ConfIA="menu ▼",ConfGW="menu ▼",ConfSL="menu ▼",ConfSW="menu ▼",ConfSD="menu ▼",LD_Confidence="menu ▼"),"SHARPen it", IF(A_Count=1,"Medium", IF(A_Count=2,"High", IF(A_Count>2,"Critical", IF(SitePoints<ThresholdLow,"Low", IF(AND(SitePoints>ThresholdLowMed,SitePoints<ThresholdMedHi)," Medium", IF(SitePoints>ThresholdMedHi," High",""))))))) -> Low
D4: SHARP Results - auto-populated from ranking results | Q4: SHARP Rating calculations
D5: Ranking scores and confidence levels (auto-populated) | Q5: Site totals
E6: Media exposure priority | F6: IA | G6: GW | H6: SL | I6: SW | J6: SD | Q6: 2 | R6: Maximum possible points | Z6: =SUM(Max_IA,Max_GW,Max_SL,Max_SW,Max_SD) -> 3500 | AB6: MaxPts
E7: Exposure scores (A-D) | F7: =IA_ExScore -> D | G7: =GW_ExScore -> B | H7: =SL_ExScore -> C | I7: =SW_ExScore -> D | J7: =SD_ExScore -> D | L7: ExpScore | Q7: =Q6+0.1 -> 2.1 | R7: Total points | Z7: =SUM(ExWtSv_IA,ExWtSv_GW,ExWtSv_SL,ExWtSv_SW,ExWtSv_SD) -> 0 | AB7: SitePoints
E8: Severity scores (1-4) | F8: =IA_SvScore -> 4 | G8: =GW_SvScore -> 4 | H8: =SL_SvScore -> 4 | I8: =SW_SvScore -> 4 | J8: =SD_SvScore -> 4 | L8: SevScore | Q8: =Q7+0.1 -> 2.2 | R8: # of "A" exposures | Z8: =COUNTIFS(ExpScore_IA:ExpScore_SD,"=A") -> 0 | AB8: A_Count
E9: Confidence levels (L-M-H) | F9: =IA_Conf -> medium | G9: =GW_Conf -> medium | H9: =SL_Conf -> medium | I9: =SW_Conf -> high | J9: =SD_Conf -> high | L9: Conf | Q9: =Q8+0.1 -> 2.3 | R9: Maximum possible points divided by 3 (ranges) | Z9: =ThresholdMedHi-ThresholdLowMed -> 1167.666667 | AB9: RangeValue
Q10: =Q9+0.1 -> 2.4 | R10: Range levels bumped by # of "A's" | Z10: =IF((A_Count=1),SitePoints+RangeValue, IF((A_Count>=2),SitePoints+ThresholdMedHi,"no A's")) -> no A's | AB10: BumpedValue
D13: Preparing the Report — exposure score conversions and weighting | R13: SHARP Rating Ranges
D14: Maximum possible points and media exposure priorities | Q14: =Q10+0.1 -> 2.5 | R14: low | T14: medium | W14: high | Y14: critical (>2 A's)
D15: 1 | E15: =E6 -> Media exposure priority | F15: IA | G15: GW | H15: SL | I15: SW | J15: SD | Q15: =Q14+0.1 -> 2.6 | R15: < | S15: =(SUM(Max_IA,Max_GW,Max_SL,Max_SW,Max_SD)/3)+1 -> 1167.666667 | T15: =S15 -> 1167.666667 | U15: — | V15: =2*T15 -> 2335.333333 | W15: > | X15: =V15 -> 2335.333333 | Y15: =IF(A_Count>2,">2 A's","N/A") -> N/A
D16: =D15+0.1 -> 1.1 | E16: Maximum possible points for media | F16: =4*ExpPriority_IA*5*5 -> 900 | G16: =4*ExpPriority_GW*5*5 -> 800 | H16: =4*ExpPriority_SL*5*5 -> 700 | I16: =4*ExpPriority_SW*5*5 -> 600 | J16: =4*ExpPriority_SD*5*5 -> 500 | L16: Max
D17: =D16+0.1 -> 1.2 | E17: Exposure priority weights for "A's" | F17: 9 | G17: 8 | H17: 7 | I17: 6 | J17: 5 | L17: ExpPriority | Q17: Notes:
Q18: 2 | R18: Maximum, possible total site points, if all environmental media scores are "A1"
D19: Source values and conversions | Q19: =Q18+0.1 -> 2.1 | R19: Total number of points earned for this site
D20: =D17+0.1 -> 1.3 | E20: Exposure points for exposure scores | F20: =IF(ExpScore_IA="A",4, IF(ExpScore_IA="B",3, IF(ExpScore_IA="C",2, IF(ExpScore_IA="D",1,"")))) -> 1 | G20: =IF(ExpScore_GW="A",4, IF(ExpScore_GW="B",3, IF(ExpScore_GW="C",2, IF(ExpScore_GW="D",1,"")))) -> 3 | H20: =IF(ExpScore_SL="A",4, IF(ExpScore_SL="B",3, IF(ExpScore_SL="C",2, IF(ExpScore_SL="D",1,"")))) -> 2 | I20: =IF(ExpScore_SW="A",4, IF(ExpScore_SW="B",3, IF(ExpScore_SW="C",2, IF(ExpScore_SW="D",1,"")))) -> 1 | J20: =IF(ExpScore_SD="A",4, IF(ExpScore_SD="B",3, IF(ExpScore_SD="C",2, IF(ExpScore_SD="D",1,"")))) -> 1 | L20: ExpPts | Q20: =Q19+0.1 -> 2.2 | R20: Total number of "A" exposures for the site
D21: =D20+0.1 -> 1.4 | E21: Non-D routes (binary, yes = 1, no = 0) | F21: =IF(OR(ExpScore_IA="A",ExpScore_IA="B",ExpScore_IA="C"),1,0) -> 0 | G21: =IF(OR(ExpScore_GW="A",ExpScore_GW="B",ExpScore_GW="C"),1,0) -> 1 | H21: =IF(OR(ExpScore_SL="A",ExpScore_SL="B",ExpScore_SL="C"),1,0) -> 1 | I21: =IF(OR(ExpScore_SW="A",ExpScore_SW="B",ExpScore_SW="C"),1,0) -> 0 | J21: =IF(OR(ExpScore_SD="A",ExpScore_SD="B",ExpScore_SD="C"),1,0) -> 0 | L21: Non_D | Q21: 2.3 | R21: Maximum possible points divided into three ranges
D22: =D21+0.1 -> 1.5 | E22: Severity points for severity scores | F22: =IF(AND(ExpScore_IA="A",SvScore_IA=4),"error", IF(SvScore_IA=4,0, IF(SvScore_IA=3,1, IF(SvScore_IA=2,3, IF(SvScore_IA=1,5,0))))) -> 0 | G22: =IF(AND(ExpScore_GW="A",SvScore_GW=4),"error", IF(SvScore_GW=4,0, IF(SvScore_GW=3,1, IF(SvScore_GW=2,3, IF(SvScore_GW=1,5,0))))) -> 0 | H22: =IF(AND(ExpScore_SL="A",SvScore_SL=4),"error", IF(SvScore_SL=4,0, IF(SvScore_SL=3,1, IF(SvScore_SL=2,3, IF(SvScore_SL=1,5,0))))) -> 0 | I22: =IF(AND(ExpScore_SW="A",SvScore_SW=4),"error", IF(SvScore_SW=4,0, IF(SvScore_SW=3,1, IF(SvScore_SW=2,3, IF(SvScore_SW=1,5,0))))) -> 0 | J22: =IF(AND(ExpScore_SD="A",SvScore_SD=4),"error", IF(SvScore_SD=4,0, IF(SvScore_SD=3,1, IF(SvScore_SD=2,3, IF(SvScore_SD=1,5,0))))) -> 0 | L22: SvPts | Q22: 2.4 | R22: Total points plus number of range value bumps (by # of "A's"), where:
D23: =D22+0.1 -> 1.6 | E23: Sum of Non-D routes | F23: =SUM(F21:J21) -> 2 | L23: NonDSum | R23: One "A" ensures no less than medium.
D24: =D23+0.1 -> 1.7 | E24: Total points by medium | F24: =IF(Non_D_IA=0,0, IF(ExpPts_IA=4,ExpPts_IA*SvPts_IA*NonDSum*ExpPriority_IA, IF(ExpPts_IA=3,ExpPts_IA*SvPts_IA*NonDSum, IF(ExpPts_IA=2,ExpPts_IA*SvPts_IA*NonDSum, IF(ExpPts_IA=1,ExpPts_IA*SvPts_IA*NonDSum,""))))) -> 0 | G24: =IF(Non_D_GW=0,0, IF(ExpPts_GW=4,ExpPts_GW*SvPts_GW*NonDSum*ExpPriority_GW, IF(ExpPts_GW=3,ExpPts_GW*SvPts_GW*NonDSum, IF(ExpPts_GW=2,ExpPts_GW*SvPts_GW*NonDSum, IF(ExpPts_GW=1,ExpPts_GW*SvPts_GW*NonDSum,""))))) -> 0 | H24: =IF(Non_D_SL=0,0, IF(ExpPts_SL=4,ExpPts_SL*SvPts_SL*NonDSum*ExpPriority_SL, IF(ExpPts_SL=3,ExpPts_SL*SvPts_SL*NonDSum, IF(ExpPts_SL=2,ExpPts_SL*SvPts_SL*NonDSum, IF(ExpPts_SL=1,ExpPts_SL*SvPts_SL*NonDSum,""))))) -> 0 | I24: =IF(Non_D_SW=0,0, IF(ExpPts_SW=4,ExpPts_SW*SvPts_SW*NonDSum*ExpPriority_SW, IF(ExpPts_SW=3,ExpPts_SW*SvPts_SW*NonDSum, IF(ExpPts_SW=2,ExpPts_SW*SvPts_SW*NonDSum, IF(ExpPts_SW=1,ExpPts_SW*SvPts_SW*NonDSum,""))))) -> 0 | J24: =IF(Non_D_SD=0,0, IF(ExpPts_SD=4,ExpPts_SD*SvPts_SD*NonDSum*ExpPriority_SD, IF(ExpPts_SD=3,ExpPts_SD*SvPts_SD*NonDSum, IF(ExpPts_SD=2,ExpPts_SD*SvPts_SD*NonDSum, IF(ExpPts_SD=1,ExpPts_SD*SvPts_SD*NonDSum,""))))) -> 0 | L24: ExWtSv | R24: Two "A's" ensure a high.
R25: Three or more "A's" ensure a critical.
D26: Notes: | Q26: 2.5 | R26: SHARP Rating ranges of "low", "medium", and "high"
D27: 1 | E27: Listed in order of highest to lowest exposure priority from left to right. | Q27: 2.6 | R27: Maximum possible points by "3".
D28: =D27+0.1 -> 1.1 | E28: Maximum possible points (all "A1's") per environmental medium (= 4*ExpPriority_IA*5*5), where:
E29: 4 = SevPts (for severity scores = "1")
E30: ExpPriority = highest to lowest exposure priority [IA to SD], left to right
E31: the first "5" = an "A" exposure score for all five media
E32: the second "5" = the maximum possible number of "A's"
D33: =D28+0.1 -> 1.2 | E33: Weights media in order of exposure priority from left to right, highest to lowest exposure risk.
D34: =D33+0.1 -> 1.3 | E34: Assigns respective values of "4", "3", "2", and "1" to alpha exposure scores of "A", "B", "C", and "D".
D35: 1.4 | E35: Non-"D" exposure scores are counted as "1". "D" scores are counted as "0".
D36: 1.5 | E36: Weights severity scores of "4", "3", "2", and "1" to "0", "1", "3", and "5", respectively.
D37: 1.6 | E37: Counts the total of non-"D" exposure scores.
D38: 1.7 | E38: Total points earned for each environmental medium: (ExpPriority)(ExpPts)(SvPts)(NonDSum)

Sheet Lists (hidden)
C2: Input Lists
C4: Counties list (39) | E4: Land Use (10) | G4: ISIS Responsible Unit (8)
C5: menu ▼ | E5: menu ▼ | G5: menu ▼
B6: 1 | C6: Adams | E6: Agricultural | G6: CRO
B7: 2 | C7: Asotin | E7: Commercial | G7: ERO
B8: 3 | C8: Benton | E8: Industrial | G8: NWRO
B9: 4 | C9: Chelan | E9: Mixed use | G9: SWRO
B10: 5 | C10: Clallam | E10: Recreational | G10: HQ
B11: 6 | C11: Clark | E11: Transportation | G11: Haz Waste
B12: 7 | C12: Columbia | E12: Residential | G12: Solid Waste
B13: 8 | C13: Cowlitz | E13: Undeveloped | G13: PLIA
B14: 9 | C14: Douglas | E14: Vacant
B15: 10 | C15: Ferry | E15: Other | G15: Data validation range
B16: 11 | C16: Franklin | G16: menu ▼
B17: 12 | C17: Garfield | E17: MTCA cleanup milestones (11) | G17: yes
B18: 13 | C18: Grant | E18: menu ▼ | G18: maybe
B19: 14 | C19: Grays Harbor | E19: initial investigation | G19: no
B20: 15 | C20: Island | E20: site hazard assessment
B21: 16 | C21: Jefferson | E21: CSL listing
B22: 17 | C22: King | E22: remedial investigation
B23: 18 | C23: Kitsap | E23: feasibility study
B24: 19 | C24: Kittitas | E24: cleanup action plan
B25: 20 | C25: Klickitat | E25: cleanup implementation
B26: 21 | C26: Lewis | E26: cleanup completion/NFA
B27: 22 | C27: Lincoln | E27: post-cleanup controls & monitoring
B28: 23 | C28: Mason | E28: periodic review
B29: 24 | C29: Okanogan | E29: NFA rescission
B30: 25 | C30: Pacific
B31: 26 | C31: Pend Oreille | E31: Terms
B32: 27 | C32: Pierce | E32: CSL = cleanup screening level.
B33: 28 | C33: San Juan | E33: DFW = Washington Department of Fish & Wildlife
B34: 29 | C34: Skagit | E34: DNAPL = dense non-aqueous phase liquid.
B35: 30 | C35: Skamania | E35: DNR = Washington Department of Natural Resources.
B36: 31 | C36: Snohomish | E36: DOH = Washington Department of Health.
B37: 32 | C37: Spokane | E37: Ecology = Washington Department of Ecology.
B38: 33 | C38: Stevens | E38: EHD = environmental health disparities
B39: 34 | C39: Thurston | E39: LNAPL = light non-aqueous phase liquid.
B40: 35 | C40: Wahkiakum | E40: MTCA = Model Toxics Control Act.
B41: 36 | C41: Walla Walla | E41: n/a = not applicable.
B42: 37 | C42: Whatcom | E42: NAPL = non-aqueous phase liquid.
B43: 38 | C43: Whitman | E43: NOAA = National Oceanic and Atmospheric Administration.
B44: 39 | C44: Yakima | E44: PBT = persistent bioaccumulative toxic
E45: SCO = sediment cleanup objective.
E46: SCUM = sediment cleanup manual.
E47: SHARP = site hazard assessment and ranking process.
E48: SWAP = Source Water Assessment Program.
E49: TCE = trichloroethene

Sheet SvCalc (hidden)
C2: Severity Scoring Logic
C4: SL Severity score inputs
C5: 40 | D5: = SvMaxPoints | maximum sum of severity Q-scores
C6: =SUM(SL_Sv1_Score,SL_Sv2_Score,SL_Sv3_Score,SL_Sv4_Score,SL_Sv5_Score,SL_Sv6_Score,SL_Sv7_Score) -> 3 | D6: = SvQSum | sum of severity Q-scores
C7: 20 | D7: = SvThresh | Threshold
C8: =SL_SvQSum/SL_SvMaxPoints -> 0.075 | D8: = SvQSumMaxRatio | SvQSum/SvMaxPoints
C10: GW Severity score inputs
C11: 50 | D11: = SvMaxPoints | maximum sum of severity Q-scores
C12: =SUM(GW_Sv1_Score,GW_Sv2_Score,GW_Sv3_Score,GW_Sv4_Score,GW_Sv5_Score,GW_Sv6_Score,GW_Sv7_Score,GW_Sv8_Score) -> 6 | D12: = SvQSum | sum of severity Q-scores
C13: 20 | D13: = SvThresh | Threshold
C14: =GW_SvQSum/GW_SvMaxPoints -> 0.12 | D14: = SvQSumMaxRatio | SvQSum/SvMaxPoints
C16: SW Severity score inputs
C17: 45 | D17: = SvMaxPoints | maximum sum of severity Q-scores
C18: =SUM(SW_Sv1_Score,SW_Sv2_Score,SW_Sv3_Score,SW_Sv4_Score,SW_Sv5_Score) -> 0 | D18: = SvQSum | sum of severity Q-scores
C19: 20 | D19: = SvThresh | Threshold
C20: =SW_SvQSum/SW_SvMaxPoints -> 0 | D20: = SvQSumMaxRatio | SvQSum/SvMaxPoints
C22: SD Severity score inputs
C23: 25 | D23: = SvMaxPoints | maximum sum of severity Q-scores
C24: =SUM(SD_Sv1_Score,SD_Sv2_Score,SD_Sv3_Score,SD_Sv4_Score,SD_Sv5_Score,SD_Sv6_Score) -> 0 | D24: = SvQSum | sum of severity Q-scores
C25: 20 | D25: = SvThresh | Threshold
C26: =SD_SvQSum/SD_SvMaxPoints -> 0 | D26: = SvQSumMaxRatio | SvQSum/SvMaxPoints
C28: IA Severity score inputs
C29: 15 | D29: = SvMaxPoints | maximum sum of severity Q-scores
C30: =SUM(IA_Sv1_Score,IA_Sv2_Score,IA_Sv3_Score) -> 0 | D30: = SvQSum | sum of severity Q-scores
C31: 10 | D31: = SvThresh | Threshold
C32: =IA_SvQSum/IA_SvMaxPoints -> 0 | D32: = SvQSumMaxRatio | SvQSum/SvMaxPoints
